Cogmind - Beta 16.1 @@@ ROGUE MODE // 2026.02.12 @ 04:40:22 Player: H3-MLN Result: Escaped! Performance ------------- Evolutions (9) 4500 Regions Visited (28) 5600 Robots Destroyed (543) 2715 Value Destroyed (30341) 30341 Prototype IDs (72) 1440 Alien Tech Used (0) 0 Bonus (28007) 28007 TOTAL SCORE: 72603 Bonus ------- Triggered High Security 500 High Alert Combat Kills 10938 Follower Combat Kills 4511 Hunted by Unchained 500 Destroyed Unchained 1000 Entered Garrisons 1800 Used RIF Installer 6000 Aligned with FarCom 300 Win 3000 Friendly Fire -542 Cogmind --------- Core Integrity 314/1600 Matter 271/300 Energy 84/100 System Corruption 4% Temperature Cool (0) Movement Core (50) Location To Epsilon Eridani Parts ------- > --- POWER (2) -------- (None) > --- PROPULSION (8) --- (None) > --- UTILITY (11) ----- (None) > --- WEAPON (4) ------- (None) > --- INVENTORY (5) ---- Improved Ion Engine Relay Coupler [NC] (41) Enhanced Hardcell Cannon Hellfire Missile Launcher Peak State ------------ > --- POWER ------------ Micro Antimatter Reactor Compact Particle Reactor > --- PROPULSION ------- Armored Medium Treads Armored Medium Treads Armored Medium Treads Enhanced Armored Medium Treads Enhanced Armored Medium Treads Biometal Medium Treads > --- UTILITY ---------- Experimental Cooling System Experimental Cooling System Experimental Coolant Injector High-capacity Storage Unit Experimental Armor Integrity Analyzer Advanced Weapon Cycler Experimental Phase Shifter Centrium Light Armor Plating Relay Coupler [C] > --- WEAPON ----------- Heavy Wave Gun Heavy Wave Gun Nova Cannon Linear Accelerator > --- INVENTORY -------- Improved Thunder Leg Electron Diverter Experimental Energy Well Experimental Energy Well Experimental Sensor Array Experimental Melee Analysis Suite Advanced Kinecellerator Experimental Actuator Array Graphene Brace Advanced Force Field Improved Trap Extractor Advanced Trap Extractor Heavy Wave Gun HERF Cannon Hypervelocity Railgun Gamma Bomb Array Hellfire Missile Launcher Hellfire Missile Launcher Advanced Remote Datajack Segregator [Rating: 177] Favorites ----------- Power Heavy Ion Engine Engine Heavy Ion Engine Power Core Fission Core Reactor Cold Fusion Reactor Propulsion Potential Leg Treads Improved Treads Leg Potential Leg Wheel Compact Wheel Hover Unit Combat Antigrav System Flight Unit Nuclear Pulse Array Utility High-capacity Storage Unit Device Experimental Coolant Injector Storage High-capacity Storage Unit Processor Experimental Core Analyzer Hackware Relay Coupler [C] Protection Medium Armor Plating Weapon Nova Cannon Energy Gun Heavy Wave Gun Energy Cannon Nova Cannon Ballistic Gun Heavy Assault Rifle Ballistic Cannon Heavy Linear Accelerator Launcher Rocket Launcher Special Weapon Improved Remote Datajack Impact Weapon Great Maul Special Melee Weapon Datajack Build | -11 -10 -10 -9 -9 -9 -8 -8 -8 -8 -8 -7 -7 -7 -7 -6 -6 -6 -6 -5 -5 -5 -5 -4 -4 -3 -2 -2 -1 ------- Run | Yrd Mat Min Mat Min Exi Min Mat Gar Mat Gar Fac Gar Fac Gar Fac Gar Fac Gar Fac Was Fac Gar Fac Gar Res Res Gar Acc Slots Evolved 18 | . . . 2 . . . 2 . . . 2 . . . 2 . . . 2 . . . 2 . 2 2 . 2 Power 1 | . . . . . . . . . . . . . . . . . . . 1 . . . . . . . . . Propulsion 6 | . . . . . . . 1 . . . 1 . . . . . . . 1 . . . 1 . . 2 . . Utility 9 | . . . 1 . . . . . . . 1 . . . 2 . . . . . . . 1 . 2 . . 2 Weapon 2 | . . . 1 . . . 1 . . . . . . . . . . . . . . . . . . . . . Parts Attached 356 | 5 5 1 30 . 16 4 10 12 13 2 1 8 5 9 15 6 12 25 3 6 . 13 3 39 90 3 2 18 Power 38 | . 2 . 2 . 1 . . . 2 . . . . 2 2 1 1 4 . 1 . 2 . 3 11 1 . 3 Engine 9 | . 2 . 2 . . . . . 2 . . . . 2 . . . . . . . . . . . . . 1 Core 6 | . . . . . . . . . . . . . . . 2 . 1 2 . . . . . . 1 . . . Reactor 23 | . . . . . 1 . . . . . . . . . . 1 . 2 . 1 . 2 . 3 10 1 . 2 Propulsion 88 | 2 1 . 6 . 4 . 2 1 2 . . 2 1 4 1 . 4 8 1 2 . 5 1 6 28 . . 7 Treads 41 | 1 1 . 6 . 2 . . . . . . . . 4 1 . . 4 . 1 . 2 1 4 13 . . 1 Leg 24 | . . . . . 2 . 2 1 1 . . 2 1 . . . . . . 1 . 3 . 2 9 . . . Wheel 5 | 1 . . . . . . . . . . . . . . . . . 1 . . . . . . . . . 3 Hover 10 | . . . . . . . . . . . . . . . . . 4 1 1 . . . . . 1 . . 3 Flight 8 | . . . . . . . . . 1 . . . . . . . . 2 . . . . . . 5 . . . Utility 136 | 1 1 1 8 . 6 4 4 5 5 1 1 2 1 1 9 5 4 9 1 2 . 4 2 17 33 1 2 6 Device 45 | . . 1 2 . 1 2 3 . 2 . . 1 . . 5 . 1 3 1 1 . . . 5 14 1 . 2 Storage 13 | 1 1 . . . 1 1 . . . . . . . . 2 1 2 1 . . . . . . 2 . . 1 Processor 9 | . . . . . 1 1 . . . 1 . . . . . . 1 . . . . . . . 4 . . 1 Hackware 46 | . . . 1 . . . . 4 1 . . 1 1 . 2 4 . 2 . 1 . 4 2 11 8 . 2 2 Protection 23 | . . . 5 . 3 . 1 1 2 . 1 . . 1 . . . 3 . . . . . 1 5 . . . Artifact . | . . . . . . . . . . . . . . . . . . . . . . . . . . . . . Weapon 94 | 2 1 . 14 . 5 . 4 6 4 1 . 4 3 2 3 . 3 4 1 1 . 2 . 13 18 1 . 2 Energy Gun 16 | 2 . . 1 . . . . 3 . 1 . . . . . . . . . . . . . 3 6 . . . Energy Cannon 20 | . 1 . 3 . . . . . . . . . 2 . 2 . 1 2 . . . 1 . 5 2 . . 1 Ballistic Gun 25 | . . . 6 . 5 . 2 . 4 . . . . . . . 2 2 . . . 1 . 2 1 . . . Ballistic Cannon 16 | . . . 2 . . . 1 . . . . 3 1 2 . . . . . 1 . . . 2 3 1 . . Launcher 5 | . . . 1 . . . . . . . . . . . . . . . . . . . . . 4 . . . Special Weapon 10 | . . . . . . . . 3 . . . 1 . . 1 . . . 1 . . . . 1 2 . . 1 Impact Weapon 1 | . . . . . . . 1 . . . . . . . . . . . . . . . . . . . . . Slashing Weapon . | . . . . . . . . . . . . . . . . . . . . . . . . . . . . . Piercing Weapon . | . . . . . . . . . . . . . . . . . . . . . . . . . . . . . Special Melee Weapon 1 | . . . 1 . . . . . . . . . . . . . . . . . . . . . . . . . Unidentified Prototypes 22 | . . 1 1 . . 3 1 . 1 . . . . . . . 2 . . . . . . . 12 1 . . Corrupted Parts 2 | . . . . . . . . . . . . . . . . . . . . . . . . . 2 . . . System Corruption 16 | . . . . . . . . . . . . . . . . . . . . . . . . . 16 . . . Parts Lost 114 | . 1 . 2 . 7 . . 4 2 . . 1 . 1 . . 5 12 . . . . . 16 40 5 1 17 Power 17 | . . . . . . . . . 2 . . . . 1 . . . 2 . . . . . 3 5 2 . 2 Propulsion 33 | . 1 . 1 . 2 . . . . . . . . . . . 3 2 . . . . . 3 12 3 . 6 Utility 35 | . . . 1 . 3 . . 1 . . . 1 . . . . 1 3 . . . . . 4 13 . 1 7 Weapon 29 | . . . . . 2 . . 3 . . . . . . . . 1 5 . . . . . 6 10 . . 2 Highest Loss Streak 17 | . 1 . 1 . 5 . . 1 1 . . 1 . 1 . . 3 8 . . . . . 15 11 5 1 17 To Critical Strikes 3 | . . . . . 2 . . . . . . . . . . . 1 . . . . . . . . . . . Average Backups 14 | 3 8 11 14 15 12 13 14 13 14 16 16 16 14 14 13 14 12 13 16 15 15 15 15 16 17 2 4 4 Power . | 1 1 1 . . . . . . . . . . . . . . . . . . . . 1 . . . . . Propulsion 1 | . 3 5 2 2 1 1 1 1 1 1 1 1 1 3 3 3 1 . 2 1 2 1 . 2 1 . . . Utility 8 | . 1 2 7 7 6 9 9 9 10 10 10 10 8 7 6 7 7 10 12 12 11 10 9 11 10 . 1 1 Weapon 3 | 1 1 2 3 5 4 3 3 3 3 3 4 3 3 3 3 3 3 2 2 2 2 3 4 2 4 2 3 2 Tool/Special . | . . . . . . . . . . . . . . . . . . . . . . . . . . . . . Unused Backups 50 | . . . 8 . 8 1 1 2 . 3 . 2 1 . . . . 4 1 . . 2 . 6 8 . . 3 Power 7 | . . . 1 . 3 . . . . . . . . . . . . 1 . . . 1 . . 1 . . . Propulsion 5 | . . . 1 . 1 . . . . . . . . . . . . . . . . . . 1 2 . . . Utility 29 | . . . 1 . 4 1 1 2 . 2 . 2 1 . . . . 3 1 . . 1 . 5 3 . . 2 Weapon 7 | . . . 5 . . . . . . . . . . . . . . . . . . . . . 1 . . 1 Tool/Special 2 | . . . . . . . . . . 1 . . . . . . . . . . . . . . 1 . . . Average Slot Usage (%) 83 | . 81 85 99 100 86 86 88 94 88 74 69 82 84 81 79 79 80 83 77 81 81 81 79 84 81 23 14 30 Engine 3 | . 11 14 11 11 8 . . . 3 9 7 7 7 6 3 . . . . . 4 . . . . . . . Reactor 4 | . . . . . 2 9 9 9 3 . . . . . . 1 5 3 5 10 5 10 10 9 8 4 . 1 Treads 10 | . 22 28 22 22 16 . . . . . . . . 9 12 13 5 6 11 10 11 10 . 16 14 . . . Leg 7 | . . . . . 5 22 25 27 27 27 23 29 30 11 . . . . . . . 4 15 3 4 . . . Hover 1 | . . . . . . . . . . . . . . . . . 13 9 1 4 5 1 . . . . . 2 Device 4 | . . . . . . . 1 2 2 2 2 2 6 7 13 6 6 5 5 5 5 5 5 9 12 . . 3 Storage 7 | . 14 14 11 11 11 11 9 9 9 9 7 7 7 7 6 6 6 6 5 5 5 5 5 5 4 4 4 4 Processor 8 | . . . . . 2 11 9 9 9 15 15 15 15 15 13 13 14 20 17 17 17 17 15 3 . 4 4 7 Hackware 4 | . . . 8 . . . . 1 4 . . 3 . . 5 12 11 . . 4 5 4 10 12 9 . 5 8 Protection 5 | . . . 12 22 18 10 7 3 2 . 4 1 . . . . . 4 5 . . . . 3 6 . . . Energy Gun 2 | . 24 14 4 . . . . 7 4 1 . . . . . . . . . . . . . 2 5 . . . Energy Cannon 5 | . 3 14 7 . . . . . . . . . 7 14 12 11 6 6 11 5 5 5 5 5 8 . . 1 Ballistic Gun 7 | . . . 15 33 12 21 24 13 10 9 7 2 3 . . . 3 9 5 . . . . 3 . . . . Ballistic Cannon 2 | . . . 4 . . . . . . . . 9 3 7 6 6 2 . . 4 5 5 5 4 . . . . Special Weapon 1 | . . . . . . . . 5 5 . . . . . . 1 . 2 5 5 5 4 5 2 1 . . . Peak Build Rating 177 | 5 7 16 23 23 65 73 85 82 89 92 98 102 102 102 111 110 110 103 111 125 124 137 145 155 177 78 31 126 Average Rating 82 | 2 6 7 19 23 34 70 80 75 75 90 95 90 96 99 107 107 106 85 105 119 120 126 138 120 146 54 28 56 On Entrance 75 | . 5 7 8 23 23 57 73 82 67 89 91 95 102 94 100 105 107 94 103 111 125 121 136 145 128 52 19 27 Avg Prop Armor Cover (%) 6 | 25 15 . . . . 5 . . . . . 4 . . . . 10 9 1 1 1 1 4 4 5 . . 14 Naked Turns 7 | . . . . . . . . . . . . . . . . . . . . . . . . . . . . 7 Heaviest Build 145 | 9 30 30 51 51 69 72 76 72 68 68 72 90 91 96 98 99 99 101 102 141 119 144 138 145 144 29 2 67 Greatest Support 196 | 16 40 40 46 46 60 60 75 78 78 78 78 96 96 150 150 150 150 120 120 120 120 150 150 186 196 34 3 50 Greatest Overweight (x) 8 | . 1 . 2 1 1 1 1 . 1 . . . 1 1 1 . 1 8 . 7 . 2 1 2 3 . . 5 Average Overweight (x) . | . . . . 1 . . . . . . . . . . . . . . . . . . . . . . . . Largest Inventory Capacity 20 | 8 15 15 15 15 20 20 20 20 20 20 20 20 20 20 20 20 20 20 20 20 20 20 20 20 20 5 5 10 Average Capacity 17 | 6 13 15 15 15 15 20 20 20 20 20 20 20 20 20 20 20 19 17 20 20 20 20 20 20 19 5 5 5 Most Carried 20 | 7 12 12 15 15 20 20 20 20 20 20 20 20 20 20 20 20 20 20 20 20 20 20 20 20 20 3 5 6 Average Carried 17 | 4 8 11 14 15 14 19 19 19 19 19 19 19 19 20 19 20 17 17 20 19 19 19 19 19 18 2 4 4 Final Capacity 20 | 8 15 15 15 15 20 20 20 20 20 20 20 20 20 20 20 20 15 20 20 20 20 20 20 20 5 5 5 5 Final Carried 20 | 5 11 12 15 15 18 20 20 20 20 20 20 20 20 20 20 20 15 20 20 20 20 20 20 20 3 3 5 4 Class Distribution -------------------- 28% | Scavenger-Gunner 14% | Mutant 11% | Trapper-Tank 8% | Botlord-Tank 8% | Scavenger-Tank 8% | Gunner 7% | Commander-Gunner 4% | Tank Dominant Class ---------------- Mutant | -10/Materials Mutant | -10/Mines Trapper-Tank | -9/Materials Trapper-Tank | -9/Mines Mutant | -9/Exiles Gunner | -8/Mines Gunner | -8/Materials Commander-Gunner | -8/Garrison Commander-Gunner | -8/Materials Scavenger-Gunner | -8/Garrison Scavenger-Gunner | -7/Factory Scavenger-Gunner | -7/Garrison Scavenger-Gunner | -7/Factory Scavenger-Gunner | -7/Garrison Scavenger-Gunner | -6/Factory Scavenger-Gunner | -6/Garrison Scavenger-Gunner | -6/Factory Scavenger-Tank | -6/Garrison Scavenger-Tank | -5/Factory Scavenger-Gunner | -5/Waste Scavenger-Tank | -5/Factory Scavenger-Tank | -5/Garrison Commander-Gunner | -4/Factory Botlord-Tank | -4/Garrison Botlord-Tank | -3/Research Mutant | -2/Research Mutant | -2/Garrison Mutant | -1/Access Resources | -11 -10 -10 -9 -9 -9 -8 -8 -8 -8 -8 -7 -7 -7 -7 -6 -6 -6 -6 -5 -5 -5 -5 -4 -4 -3 -2 -2 -1 ----------- Run | Yrd Mat Min Mat Min Exi Min Mat Gar Mat Gar Fac Gar Fac Gar Fac Gar Fac Gar Fac Was Fac Gar Fac Gar Res Res Gar Acc Matter Collected 16832 | 245 55 10 796 72 812 200 939 849 717 1068 . 1251 47 739 502 362 962 1432 . 445 . 628 91 1292 2847 . . 471 Remotely . | . . . . . . . . . . . . . . . . . . . . . . . . . . . . . Salvage Created 28027 | 15 825 120 1476 144 392 370 2207 1102 989 1168 . 1123 44 1664 863 405 1746 2559 . 1227 . 280 90 1744 7010 . . 464 Parts 1338 | . 41 6 94 9 50 12 107 63 71 80 . 75 3 80 38 20 81 124 . 5 . 12 4 73 270 . . 20 Haulers Intercepted 25 | . 1 . 3 . . . 4 . 2 . . . . . 3 . 5 . . . . . . . 6 . . 1 Recyclers Shooed 11 | . 2 . 1 . . . . . . . . . . . 2 . 1 . . . . . . . 5 . . . Parts Field Recycled . | . . . . . . . . . . . . . . . . . . . . . . . . . . . . . Retrieved Matter . | . . . . . . . . . . . . . . . . . . . . . . . . . . . . . Parts Self-Destructed . | . . . . . . . . . . . . . . . . . . . . . . . . . . . . . Prevented . | . . . . . . . . . . . . . . . . . . . . . . . . . . . . . Parts Restored 2 | . . . . . . . 1 . . . . . . . 1 . . . . . . . . . . . . . Broken 2 | . . . . . . . 1 . . . . . . . 1 . . . . . . . . . . . . . Kills | -11 -10 -10 -9 -9 -9 -8 -8 -8 -8 -8 -7 -7 -7 -7 -6 -6 -6 -6 -5 -5 -5 -5 -4 -4 -3 -2 -2 -1 ------- Run | Yrd Mat Min Mat Min Exi Min Mat Gar Mat Gar Fac Gar Fac Gar Fac Gar Fac Gar Fac Was Fac Gar Fac Gar Res Res Gar Acc Combat Hostiles Destroyed 433 | . 10 4 31 3 6 4 33 24 15 30 . 29 2 26 12 13 22 44 . 6 . 10 3 27 76 . . 3 Melee 1 | . . . . . . . . . . . . . . . . . . 1 . . . . . . . . . . Guns 221 | . 9 1 17 3 1 4 33 24 14 30 . 18 . . . . 11 24 . . . . . 11 21 . . . Cannons 144 | . 1 3 10 . . . . . . . . 8 2 18 10 7 7 14 . 5 . 10 3 12 32 . . 2 AOE 40 | . . . 3 . 5 . . . 1 . . 3 . 7 2 6 3 3 . . . . . . 7 . . . Classes Destroyed 27 | 1 8 . 2 . 3 . 2 3 1 . . . . . . . 1 1 . 1 . . . 1 3 . . . Worker 15 | . 4 . 3 . . . . . 3 . . . . . . . 1 . . . . . . . 3 . . 1 Builder 15 | . 1 . 2 . . . 1 . 3 . . . . . 2 . . . . . . . . . 6 . . . Tunneler 3 | 1 . . . 1 . . . . . . . . . . . . 1 . . . . . . . . . . . Hauler 25 | . 1 . 3 . . . 4 . 2 . . . . . 3 . 5 . . . . . . . 6 . . 1 Recycler 16 | . 3 . 2 . . 1 2 . 1 . . . . . 1 . 1 . . . . . . . 4 . . 1 Mechanic 3 | . . . 1 . . . 1 . . . . . . . . . . . . . . . . . 1 . . . Operator 3 | . 1 . . . . . . . 1 . . . . . . . . . . . . . . . . . . 1 Turret 1 | . . . . . 1 . . . . . . . . . . . . . . . . . . . . . . . Watcher 19 | . 3 . 2 . . . 5 . 3 . . 1 . . 1 . 2 . . . . . . . 2 . . . Swarmer 93 | . 3 2 11 . . . 3 4 4 11 . 11 . 8 3 7 3 12 . . . 4 2 . 5 . . . Saboteur 4 | . . . . . . . . . . . . . . . . . . 4 . . . . . . . . . . Grunt 139 | . 7 2 10 3 . 3 20 8 3 8 . 6 . 9 5 2 5 13 . . . 2 1 9 23 . . . Brawler 13 | . . . . . . . 1 . . 1 . . . . . 2 . 2 . . . . . 3 4 . . . Duelist 8 | . . . . . . . 1 3 . . . . . . . . . . . . . . . 1 3 . . . Protector 1 | . . . . . . . . . . . . . . . . . . . . . . . . . 1 . . . Sentry 64 | . . . 10 . . . 8 4 5 5 . 2 . 7 1 1 4 9 . . . 1 . 2 5 . . . Demolisher 1 | . . . . . . . . 1 . . . . . . . . . . . . . . . . . . . . Specialist 11 | . . . . . . . . . 2 . . 1 . . . . 5 . . . . . . . 3 . . . Hunter 23 | . . . . . . . . 1 1 1 . 3 1 1 . . 1 . . . . 3 . 4 7 . . . Programmer 54 | . . . . . . . . 4 . 4 . 6 1 1 3 1 2 4 . . . . . 6 19 . . 3 Heavy 5 | . . . . . . . . . . . . . . . . . 2 . . . . . . . 3 . . . Behemoth 2 | . . . . . . . . . . . . . . . . . . . . . . . . 1 1 . . . Compactor 6 | . . . . . . . . . . . . . . . . . . . . 6 . . . . . . . . Armor Guard 1 | . . . . . . . . . . . . . . . . . . . . . . . . . 1 . . . Quarantine Guard 1 | . . . . . . . . . . . . . . . . . . . . . . . . . 1 . . . Striker 1 | . . . . . . . . . . . . . . . . . . . . . . . . . 1 . . . Executioner 1 | . . . . . . . . . . . . . . . . . . . . . . . . . 1 . . . Zionite 8 | . . . . . 8 . . . . . . . . . . . . . . . . . . . . . . . Assembled 7 | . . . . . 7 . . . . . . . . . . . . . . . . . . . . . . . Thug 2 | . . . . . . . . . . . . . . . 1 . . . . . . . . 1 . . . . Best Kill Streak 16 | 1 4 2 9 3 6 3 13 4 6 4 . 8 2 7 4 6 7 15 . 2 . 3 2 7 16 . . 2 Combat Bots Only 15 | . 3 2 7 3 5 3 11 4 4 4 . 8 2 7 4 6 6 15 . 2 . 3 2 7 13 . . 2 Max Kills in Single Turn 4 | 1 2 1 2 1 4 1 2 1 3 2 . 3 1 2 4 2 2 2 . 1 . 1 1 2 3 . . 1 Gunslinging 1 | . . . 1 . . . . . 1 . . . . . . . . 1 . . . . . . . . . . Exploded 4 | . . . 2 . 4 . . . 1 . . 3 . 2 1 2 2 2 . . . . . . 1 . . . Melee 1 | . . . . . . . . . . . . . . . . . . 1 . . . . . . . . . . Uniques/NPCs Destroyed 6 | . . . . . 4 1 . . . . . . . . . . . . . . . . . . 1 . . . 8R-AWN (-9/Exiles) EX-HEX (-9/Exiles) EX-BIN (-9/Exiles) EX-DEC (-9/Exiles) AD-0RF (-8/Mines) CL-0N3 (-3/Research) Combat | -11 -10 -10 -9 -9 -9 -8 -8 -8 -8 -8 -7 -7 -7 -7 -6 -6 -6 -6 -5 -5 -5 -5 -4 -4 -3 -2 -2 -1 -------- Run | Yrd Mat Min Mat Min Exi Min Mat Gar Mat Gar Fac Gar Fac Gar Fac Gar Fac Gar Fac Was Fac Gar Fac Gar Res Res Gar Acc Hostile Shots Fired 2966 | . 43 13 86 10 95 18 46 88 65 36 . 83 5 196 22 32 123 465 . . . 54 17 349 809 48 49 214 Missed 1016 | . 10 5 32 5 18 7 17 22 15 12 . 26 4 74 8 11 37 183 . . . 11 4 114 286 18 17 80 Deflected 21 | . . . . . . . . . . . . . . . . . . . . . . . . 21 . . . . Hits 1950 | . 33 8 54 5 77 11 29 66 50 24 . 57 1 122 14 21 86 282 . . . 43 13 235 523 30 32 134 Melee 21 | . . . . . . . . . . . . . . . . . . 1 . . . . . 4 16 . . . Projectile 1929 | . 33 8 54 5 77 11 29 66 50 24 . 57 1 122 14 21 86 281 . . . 43 13 231 507 30 32 134 AOE 4 | . . . . . . . . 2 . . . . . . . . . . . . . . . . 2 . . . Critical Strikes 81 | . . . 1 . 33 . 1 . . . . . . 1 . . 2 2 . . . 1 1 11 20 . 1 7 Actively Blocked 11 | . . . . . . . . . . . . . . . . . . . . . . . . . 11 . . . Part Disruptions 9 | . . . . . . 1 . . . . . 2 . . . . 2 . . . . . 1 . 3 . . . Damage Taken 32104 | . 372 80 698 71 1502 148 435 1068 728 314 . 711 15 948 461 269 1186 2402 . . . 543 264 4004 12013 569 683 2620 Core 5074 | . 83 24 97 . 220 12 104 93 149 41 . 109 . 87 . 17 115 445 . . . 36 7 297 856 362 634 1286 Absorbed by Shields 3122 | . . . . . 322 . . . . . . 8 . 421 . 25 . 769 . . . 400 135 299 681 . 62 . Reduced by Siege Mode 143 | . . . . . . . . . . . . . . . . . . . . . . . . . 143 . . . Redirected to Shielding 55 | . . . . . . . . . 30 . . . . . . . . . . . . . . . 25 . . . Ignored by Resistances 24 | . . . . . . . . . . . . . . . . . . 24 . . . . . . . . . . Regen/Repaired (Parts) 1758 | . . . . . . . . . . . . . . . . . . . . 610 . 112 39 . 997 . . . Core Remaining (%) 50 | 100 . 57 . . . 17 . . . 29 . . . 72 . . . 32 . . . 96 . 73 34 . 31 19 Volleys Fired 1621 | 2 52 12 67 6 88 9 94 119 76 56 1 69 8 111 30 25 61 224 . 32 . 50 10 82 308 . 1 28 Largest 4 | 2 2 2 3 3 3 1 2 2 2 1 1 2 3 3 3 3 4 4 . 2 . 2 2 4 4 . 1 2 Hottest 433 | 100 110 110 166 69 69 23 50 100 115 60 60 130 245 250 250 130 130 223 . 183 . 190 190 394 433 . 58 178 Shots Fired 3091 | 4 104 24 175 19 184 37 206 203 120 63 1 79 12 166 65 45 114 405 . 60 . 61 15 180 716 . 1 32 Gun 1800 | 4 94 12 108 19 181 37 206 188 112 63 1 45 . . . . 46 321 . . . . . 79 284 . . . Cannon 1083 | . 10 12 64 . . . . . . . . 33 12 160 61 33 62 75 . 56 . 37 10 86 340 . 1 31 Launcher 38 | . . . 3 . 3 . . . . . . 1 . 6 1 4 2 3 . . . . . . 15 . . . Special 170 | . . . . . . . . 15 8 . . . . . 3 8 4 6 . 4 . 24 5 15 77 . . 1 Kinetic 1604 | . . . 107 19 181 37 206 158 106 58 1 78 4 31 20 9 59 321 . 28 . 20 5 70 77 . 1 8 Thermal 1184 | 4 104 24 65 . . . . . 3 . . . 8 129 41 24 47 75 . 28 . 17 5 57 530 . . 23 Explosive 27 | . . . 3 . 3 . . . . . . 1 . 6 1 4 2 3 . . . . . . 4 . . . Electromagnetic 106 | . . . . . . . . 30 3 5 . . . . . . 2 . . . . . . 38 28 . . . Robot Hit Streak 42 | 3 17 7 9 5 15 7 10 18 10 13 2 14 4 15 14 7 17 42 . 15 . 11 18 17 19 . . 8 Robot Miss Streak 9 | . 4 2 9 2 2 1 5 6 5 5 2 4 1 4 3 2 5 3 . 1 . 1 1 5 6 . . 2 Penetration Max 1 | . . . . . . . . . 1 . . . . . . . . . . . . . . . 1 . . . Secondary Targets 14 | . 1 . 1 2 . . 2 2 1 . . . . . . . . 5 . . . . . . . . . . Max Gunslinging Chain 1 | . 1 . 1 1 . . 1 1 1 . . . . . . . . 1 . . . . . . . . . . Capacitor 5 | . . . . . . . . . . . . . . . . . . . . . . . . . . . . 5 Autonomous 159 | . . . . . 20 27 62 27 . 5 . . . . . . 2 . . . . . . 16 . . . . Shots Hit Robots 2029 | 3 66 17 110 12 144 27 148 104 73 41 1 43 5 99 45 24 79 285 . 52 . 46 12 115 460 . . 18 Core Hits 1032 | 1 40 7 78 5 46 14 77 44 36 41 . 44 2 54 25 17 59 117 . 9 . 12 3 52 241 . . 8 Critical Kills 27 | . . . 1 . . . 1 . 3 . . 1 . 1 . . 1 2 . 1 . . . 5 10 . . 1 Critical Parts Destroyed 17 | . . . . . . . 3 1 2 . . . . . . . . . . . . . . 3 8 . . . Critical Strikes 74 | 2 6 . 1 . . . 4 1 5 . . 3 . 3 1 . 2 2 . 1 . 2 1 12 27 . . 1 Burn 13 | 2 6 . . . . . . . . . . . . . . . . . . . . . . . 5 . . . Meltdown 11 | . . . . . . . . . . . . . . 1 . . 1 2 . 1 . . . . 5 . . 1 Destroy 35 | . . . 1 . . . 4 1 5 . . 1 . . . . . . . . . . . 8 15 . . . Blast 14 | . . . . . . . . . . . . 2 . 2 1 . 1 . . . . 2 1 3 2 . . . Corrupt 1 | . . . . . . . . . . . . . . . . . . . . . . . . 1 . . . . Melee Attacks 17 | . . . 2 . 4 . 1 5 . 3 . 2 . . . . . . . . . . . . . . . . Impact 11 | . . . . . . . 1 5 . 3 . 2 . . . . . . . . . . . . . . . . Slashing . | . . . . . . . . . . . . . . . . . . . . . . . . . . . . . Piercing . | . . . . . . . . . . . . . . . . . . . . . . . . . . . . . Sneak Attacks 6 | . . . 2 . 4 . . . . . . . . . . . . . . . . . . . . . . . Combat Hostiles . | . . . . . . . . . . . . . . . . . . . . . . . . . . . . . Follow-up Attacks . | . . . . . . . . . . . . . . . . . . . . . . . . . . . . . Damage Inflicted 66372 | 38 1135 267 2135 190 2667 620 3532 2196 2042 2089 46 2410 322 4885 2536 1136 3627 6199 . 2941 . 1523 383 3895 18612 . 7 939 Guns 29464 | 38 825 88 1112 190 2190 620 3510 2154 1994 2089 46 1666 . . . . 1918 4279 . . . . . 1269 5476 . . . Cannons 29848 | . 93 179 832 . . . . . . . . 464 322 4482 1962 739 1556 1702 . 2941 . 1523 383 2622 9124 . . 924 Explosions 6872 | . 213 . 189 . 477 . 22 42 48 . . 244 . 403 519 397 153 218 . . . . . . 3947 . . . Melee 36 | . . . . . . . . . . . . 36 . . . . . . . . . . . . . . . . Ramming 152 | . 4 . 2 . . . . . . . . . . . 55 . . . . . . . . 4 65 . 7 15 Kinetic 32431 | . . . 1096 190 2190 620 3510 1841 1943 1909 46 2130 286 1628 1102 412 2567 4279 . 1862 . 1117 215 1776 1652 . . 60 Thermal 26700 | 38 1029 267 848 . . . . 42 64 . . . 36 2854 1329 327 849 1702 . 1079 . 406 168 1340 13458 . . 864 Explosive 3128 | . . . 189 . 477 . . . . . . 244 . 403 50 397 153 218 . . . . . . 997 . . . Electromagnetic 3925 | . 102 . . . . . 22 313 35 180 . . . . . . 58 . . . . . . 775 2440 . . . Impact 36 | . . . . . . . . . . . . 36 . . . . . . . . . . . . . . . . Slashing . | . . . . . . . . . . . . . . . . . . . . . . . . . . . . . Piercing . | . . . . . . . . . . . . . . . . . . . . . . . . . . . . . Highest Corruption 49 | . . . 2 2 2 2 1 10 10 7 2 4 4 4 . . 6 7 . . . . 2 12 49 . 2 4 Average Corruption 5 | . . . 2 2 2 2 1 6 9 5 2 3 4 4 . . 3 6 . . . . 2 10 10 . 2 3 Corruption Purged 5 | . . . . . . . . . 3 2 . . . . . . . . . . . . . . . . . . Corruption Blocked . | . . . . . . . . . . . . . . . . . . . . . . . . . . . . . Effects 469 | . . . 4 13 16 18 4 44 24 20 . 23 6 28 . . 19 59 . . . . 1 67 120 . . 3 Message Errors 112 | . . . 2 3 6 6 1 13 3 . . 12 1 3 . . 7 13 . . . . 1 17 23 . . 1 Matter Fused 107 | . . . . 2 2 3 . 8 4 9 . 2 1 10 . . 5 18 . . . . . 16 27 . . . Heat Flow Errors 58 | . . . . 1 3 3 1 8 3 1 . 3 1 2 . . 1 7 . . . . . 10 13 . . 1 Energy Discharges 53 | . . . . 3 4 1 1 6 2 1 . 3 1 5 . . 2 5 . . . . . 4 14 . . 1 Parts Rejected 6 | . . . . . . . . 1 1 . . . . 1 . . . . . . . . . 2 1 . . . Parts Fused 1 | . . . . . . . . . . . . 1 . . . . . . . . . . . . . . . . Data Loss (minor) 54 | . . . 1 2 1 3 1 4 7 4 . . . 4 . . 2 10 . . . . . 4 11 . . . Data Loss (major) 21 | . . . . . . 1 . 1 . 1 . . 1 3 . . 1 1 . . . . . 5 7 . . . Misfires 13 | . . . 1 1 . 1 . 2 . 2 . . . . . . . 1 . . . . . 4 1 . . . Alerts 10 | . . . . 1 . . . 1 1 2 . 1 . . . . 1 1 . . . . . 1 1 . . . Misdirections 7 | . . . . . . . . . . . . . . . . . . . . . . . . 1 6 . . . Weapon Failures 27 | . . . . . . . . . 3 . . 1 1 . . . . 3 . . . . . 3 16 . . . Overload Shots 2 | . . . . . . . . . . . . . . . 1 . 1 . . . . . . . . . . . Overflow Damage 1790 | . 11 . 21 . 39 . . . . . . . 29 215 150 46 93 108 . 18 . 118 59 164 655 . . 64 Projectiles 1330 | . . . 11 . . . . . . . . . 29 203 80 46 93 76 . 18 . 118 59 164 369 . . 64 Explosions 460 | . 11 . 10 . 39 . . . . . . . . 12 70 . . 32 . . . . . . 286 . . . Melee . | . . . . . . . . . . . . . . . . . . . . . . . . . . . . . Knockbacks 35 | . . . 1 . . . . . . . . . 2 5 1 . 2 . . . . 5 1 8 10 . . . Impact . | . . . . . . . . . . . . . . . . . . . . . . . . . . . . . Kinetic 29 | . . . 1 . . . . . . . . . 2 5 1 . 2 . . . . 4 1 7 6 . . . Secondary 6 | . . . . . . . . . . . . . . . . . . . . . . 1 . 1 4 . . . Self-Inflicted Damage 879 | . . . 99 . . . . . . . . . . 22 218 . . . . . . . . . 530 . 3 7 Shots 36 | . . . 1 . . . . . . . . . . 2 3 . . . . . . . . . 30 . . . Rammed 16 | . . . 1 . . . . . . . . . . . 4 . . . . . . . . 1 4 . 2 4 Targets Rammed 18 | . 1 . 1 . . . . . . . . . . . 4 . . . . . . . . 1 5 . 2 4 Kicked . | . . . . . . . . . . . . . . . . . . . . . . . . . . . . . Crushed 2 | . 1 . . . . . . . . . . . . . . . . . . . . . . . 1 . . . Highest Temperature 737 | 48 366 192 404 168 272 210 90 264 241 273 37 291 518 204 198 84 172 427 . 118 . 365 327 195 737 . . 345 Average Temperature 88 | 27 93 78 111 77 75 82 18 66 75 69 27 73 186 89 69 28 60 76 . 32 . 117 140 102 107 . . 113 Received Heat Transfer 5142 | . 174 30 210 42 . 209 216 153 180 81 . 103 . 321 33 34 273 584 . . . 86 8 906 1355 99 45 . Effects 28 | . . . 7 . . . . . . . . 4 7 . . . . 1 . . . 5 . . 1 . . 3 Shutdowns 1 | . . . . . . . . . . . . . . . . . . . . . . . . . 1 . . . Energy Bleed 7 | . . . 2 . . . . . . . . 1 1 . . . . . . . . 3 . . . . . . Interference 15 | . . . 5 . . . . . . . . 3 2 . . . . . . . . 2 . . . . . 3 Short Circuit 1 | . . . . . . . . . . . . . 1 . . . . . . . . . . . . . . . Damage (minor) 1 | . . . . . . . . . . . . . . . . . . 1 . . . . . . . . . . Damage (major) 3 | . . . . . . . . . . . . . 3 . . . . . . . . . . . . . . . Siege Activations 5 | . . . . . . . . . . . . . . . . . . . . . . . . 1 4 . . . Total Turns 121 | . . . . . . . . . . . . . . . . . . . . . . . . 10 111 . . . Longest Duration 50 | . . . . . . . . . . . . . . . . . . . . . . . . 10 50 . . . Martial Activations . | . . . . . . . . . . . . . . . . . . . . . . . . . . . . . Shielding Activations 2 | . . . . . . . . . . . . . . . . . . . . . . . . 2 . . . . Total Turns 27 | . . . . . . . . . . . . . . . . . . . . . . . . 27 . . . . Longest Duration 23 | . . . . . . . . . . . . . . . . . . . . . . . . 23 . . . . Robots Disrupted 2 | . . . . . . . 1 . . . . . . . . . . . . . . . . . 1 . . . Combat Hostiles 2 | . . . . . . . 1 . . . . . . . . . . . . . . . . . 1 . . . Robots Corrupted 12 | . . . . . . . . . . . . . . . . . . . . . . . . 4 8 . . . Combat Hostiles 11 | . . . . . . . . . . . . . . . . . . . . . . . . 4 7 . . . Parts Fried 31 | . . . . . . . . 2 . . . . . . . . 1 . . . . . . 6 22 . . . Impact Corruptions 1 | . . . . . . . . . . . . . . . . . . . . . . . . . 1 . . . Robots Melted 16 | . . . 1 . . . . . . . . . . 1 . . 1 2 . 1 . . . . 9 . . 1 Combat Hostiles 16 | . . . 1 . . . . . . . . . . 1 . . 1 2 . 1 . . . . 9 . . 1 Parts Melted 70 | 1 3 2 2 . . . . . . . . . . 2 1 . 5 1 . 2 . . . 2 47 . . 2 Heat Transferred 29248 | 259 3084 629 1280 . . . . 50 37 . . . 37 2997 1286 424 1147 2035 . 999 . 351 148 1195 12661 . . 629 Parts Sabotaged 7 | . . . . . . . . . . . . . . . . . . 3 . . . . . . 4 . . . Parts Stolen . | . . . . . . . . . . . . . . . . . . . . . . . . . . . . . Parts Stripped . | . . . . . . . . . . . . . . . . . . . . . . . . . . . . . Power Chain Reactions 7 | . . . . . . . 1 1 1 . . . . . . . . . . . . . . . 4 . . . Alert | -11 -10 -10 -9 -9 -9 -8 -8 -8 -8 -8 -7 -7 -7 -7 -6 -6 -6 -6 -5 -5 -5 -5 -4 -4 -3 -2 -2 -1 ------- Run | Yrd Mat Min Mat Min Exi Min Mat Gar Mat Gar Fac Gar Fac Gar Fac Gar Fac Gar Fac Was Fac Gar Fac Gar Res Res Gar Acc Maximum Alert Level 5 | . . . 1 . . . 2 5 4 5 3 5 3 5 3 4 3 5 3 1 . 5 5 5 5 4 3 2 Low Security (%) 26 | 100 100 100 72 100 . 100 39 . . . . . . . . . . . . 77 100 3 . . . . . 3 Level 1 7 | . . . 27 . . . 3 10 . . . . . . . . 28 . . 22 . 9 . . . . . 64 Level 2 8 | . . . . . . . 57 15 . . . 2 . 4 . . 56 10 . . . 14 . . . . . 31 Level 3 24 | . . . . . . . . 30 67 21 100 18 100 23 100 38 15 10 100 . . 3 . . 72 74 100 . Level 4 17 | . . . . . . . . 25 32 42 . 34 . 57 . 61 . 43 . . . 14 81 28 15 25 . . Level 5 14 | . . . . . . . . 18 . 35 . 44 . 14 . . . 36 . . . 54 18 71 2 . . . High Security 1 | . . . . . . . . . . . . . . . . . . . . . . . . . 10 . . . Max Security . | . . . . . . . . . . . . . . . . . . . . . . . . . . . . . Peak Influence 2587 | 5 119 96 339 156 . 68 593 1730 1267 1990 1044 1894 994 1720 1028 1395 732 1931 1013 323 . 2587 1620 2069 1977 1100 829 498 Initial 1358 | . 3 39 31 86 . . . 300 840 797 1044 692 994 650 903 709 732 402 1013 323 . . 1358 1101 1163 1100 765 486 Average 823 | . 36 21 103 23 . 5 317 1047 1026 1416 1020 1460 936 1252 906 1114 487 1401 968 100 . 1572 1476 1684 1086 1074 818 341 Influence Increases 20229 | 5 455 210 1156 75 . 95 1094 1544 863 1193 5 1272 105 1080 601 806 727 1729 . 4 . 2867 336 1288 2485 . 76 158 Destroy 0b10 Robot/C 10445 | . 200 140 640 60 . 60 660 720 440 680 . 580 40 620 260 440 460 1040 . . . 1060 140 720 1440 . . 45 Destroy 0b10 Robot/NC 596 | 5 65 . 80 5 . 5 65 5 70 . . 5 . 30 35 . 50 35 . . . . 5 . 120 . . 16 Destroy Leader 1542 | . 68 30 196 10 . 10 178 20 132 50 . 40 20 60 68 50 132 60 . . . 70 22 50 266 . . 10 Allied During Kill 1925 | . . 27 19 . . . . 164 102 44 . 27 . 13 11 32 9 55 . . . 1130 167 68 57 . . . Successful Hack 430 | . 16 13 78 . . . 94 30 3 28 5 38 8 7 5 12 9 30 . . . . . 28 12 . 14 . Select Force Hacks 30 | . . . . . . . . . . . . . 30 . . . . . . . . . . . . . . . Disable Machine 783 | . 60 . 90 . . . 75 . 60 15 . 60 . . 180 . 30 75 . . . . . . 90 . . 48 Anti-Garrison Action 2850 | . . . . . . . . 550 . 300 . 450 . 150 . 250 . 400 . . . 350 . 350 . . 50 . Destroy Structure 1214 | . 31 . 53 . . 20 22 55 26 76 . 72 7 65 42 22 22 19 . 4 . 257 2 72 320 . . 27 Partial Spotted 27 | . . . . . . . . . . . . . . . . . . . . . . . . . 15 . . 12 Lose Combat Pursuer 387 | . 15 . . . . . . . 30 . . . . 135 . . 15 15 . . . . . . 165 . 12 . Influence Decreases 20116 | . 359 231 1013 298 . 95 632 282 1360 430 1006 367 1070 289 1307 425 1547 373 1008 927 . 280 1349 793 2607 932 285 851 Entered New Map 11664 | . 2 62 49 137 . . . 162 884 430 946 297 900 279 817 305 663 173 918 600 . . 1229 473 906 852 255 325 Time Decay 4972 | . 347 169 574 161 . 95 472 . 286 . 60 . 170 . 490 . 494 . 90 327 . . 120 . 731 30 . 356 Lost Part 1070 | . 10 . 20 . . . . 40 20 . . 10 . 10 . . 50 120 . . . . . 160 400 50 10 170 Lost Ally 1510 | . . . 70 . . . 10 80 170 . . 60 . . . 120 40 80 . . . 280 . 160 420 . 20 . Purge Threat 900 | . . . 300 . . . 150 . . . . . . . . . 300 . . . . . . . 150 . . . Squads Dispatched 78 | . 3 . 2 . . . 4 . 6 . . . 3 . 8 . 8 . . . . . 1 . 39 2 . 2 Investigation 11 | . 2 . 2 . . . 3 . . . . . 2 . 1 . 1 . . . . . . . . . . . Extermination 13 | . . . . . . . . . . . . . 1 . 3 . 2 . . . . . . . 6 . . 1 Reinforcement 28 | . 1 . . . . . 1 . 5 . . . . . 3 . 4 . . . . . . . 11 2 . 1 Assault 25 | . . . . . . . . . 1 . . . . . 1 . . . . . . . 1 . 22 . . . Garrison 1 | . . . . . . . . . . . . . . . . . 1 . . . . . . . . . . . Intercept . | . . . . . . . . . . . . . . . . . . . . . . . . . . . . . Searches Triggered . | . . . . . . . . . . . . . . . . . . . . . . . . . . . . . Unchained Authorized 1 | . . . . . . . . . . . . . . . . . . . . . . . . . 1 . . . Construction Impeded 5 | . . . . . . . 1 . 1 . . . . . . . . . . . . . . . 2 . . 1 Haulers Reinforced 2 | . . . . . . . . . . . . . . . 1 . . . . . . . . . 1 . . . Active Scanning Responses . | . . . . . . . . . . . . . . . . . . . . . . . . . . . . . Cargo Convoy Interrupts 1 | . . . . . . . . . . . . . . . . . . . . . . . . . 1 . . . Alert ID Control Effect 20 | . . . . . . . . . . . . . . . . . . . . . . 1 . 1 18 . . . Stealth | -11 -10 -10 -9 -9 -9 -8 -8 -8 -8 -8 -7 -7 -7 -7 -6 -6 -6 -6 -5 -5 -5 -5 -4 -4 -3 -2 -2 -1 --------- Run | Yrd Mat Min Mat Min Exi Min Mat Gar Mat Gar Fac Gar Fac Gar Fac Gar Fac Gar Fac Was Fac Gar Fac Gar Res Res Gar Acc Distress Signals 16 | . 2 . 1 . . . 1 . 3 . . . . . 2 . 1 . . . . . . . 6 . . . Communications Jammed 86 | . . . . . . . . 39 . . . 6 . . . . 6 . . . . . . . 35 . . . Distress Signals 86 | . . . . . . . . 39 . . . 6 . . . . 6 . . . . . . . 35 . . . Times Spotted 788 | . 21 7 41 2 17 5 51 44 37 34 . 28 1 35 19 24 28 50 1 5 . 49 16 39 195 12 12 15 Peak Tracking Total 19 | . 4 2 8 2 7 2 6 5 5 4 . 5 1 8 4 4 3 9 1 2 . 5 7 11 19 11 11 6 Tactical Retreats 23 | . 1 . . . 3 1 . . 2 . . . . 6 . . 1 1 . . . . . . 7 . 1 . Traps | -11 -10 -10 -9 -9 -9 -8 -8 -8 -8 -8 -7 -7 -7 -7 -6 -6 -6 -6 -5 -5 -5 -5 -4 -4 -3 -2 -2 -1 ------- Run | Yrd Mat Min Mat Min Exi Min Mat Gar Mat Gar Fac Gar Fac Gar Fac Gar Fac Gar Fac Was Fac Gar Fac Gar Res Res Gar Acc Traps Triggered 42 | . 2 . 1 . . . 1 2 . 3 1 3 . 2 2 2 3 3 1 . . 4 1 4 6 . . 1 Indirectly . | . . . . . . . . . . . . . . . . . . . . . . . . . . . . . Trap Hack Attempts 36 | . . . 36 . . . . . . . . . . . . . . . . . . . . . . . . . Triggered . | . . . . . . . . . . . . . . . . . . . . . . . . . . . . . Disarmed . | . . . . . . . . . . . . . . . . . . . . . . . . . . . . . Reprogrammed 12 | . . . 7 . . . 5 . . . . . . . . . . . . . . . . . . . . . Reused 3 | . . . . . . 3 . . . . . . . . . . . . . . . . . . . . . . Traps Extracted 12 | . . . 7 . . . 5 . . . . . . . . . . . . . . . . . . . . . Installed 3 | . . . . . . 3 . . . . . . . . . . . . . . . . . . . . . . Triggered . | . . . . . . . . . . . . . . . . . . . . . . . . . . . . . Most Traps Carried 9 | . . . 7 7 7 3 5 5 5 5 5 5 5 5 5 5 5 9 9 9 9 9 9 9 9 . . . Objects Rigged 4 | . 4 . . . . . . . . . . . . . . . . . . . . . . . . . . . Exploded 2 | . 2 . . . . . . . . . . . . . . . . . . . . . . . . . . . Machines | -11 -10 -10 -9 -9 -9 -8 -8 -8 -8 -8 -7 -7 -7 -7 -6 -6 -6 -6 -5 -5 -5 -5 -4 -4 -3 -2 -2 -1 ---------- Run | Yrd Mat Min Mat Min Exi Min Mat Gar Mat Gar Fac Gar Fac Gar Fac Gar Fac Gar Fac Was Fac Gar Fac Gar Res Res Gar Acc Machines Disabled 106 | . 4 . 6 . 8 . 5 8 4 9 . 13 . 1 12 3 2 9 . . . 4 . 7 6 . 1 4 Max in Single Turn 8 | . 2 . 1 . 2 . 2 1 1 2 . 2 . 1 8 1 1 1 . . . 1 . 1 1 . 1 1 Garrison Access 2 | . . . . . . . . . . . . . . . . . . . . . . . . . 1 . . 1 Garrison Relay 39 | . . . . . . . . 7 . 5 . 8 . 1 . 3 . 4 . . . 5 . 5 . . 1 . Phase Generator 1 | . . . . . . . . 1 . . . . . . . . . . . . . . . . . . . . Machines Repaired . | . . . . . . . . . . . . . . . . . . . . . . . . . . . . . Machines Dismantled . | . . . . . . . . . . . . . . . . . . . . . . . . . . . . . Machines Sabotaged . | . . . . . . . . . . . . . . . . . . . . . . . . . . . . . Overloaded Fab Kills . | . . . . . . . . . . . . . . . . . . . . . . . . . . . . . Hacking | -11 -10 -10 -9 -9 -9 -8 -8 -8 -8 -8 -7 -7 -7 -7 -6 -6 -6 -6 -5 -5 -5 -5 -4 -4 -3 -2 -2 -1 --------- Run | Yrd Mat Min Mat Min Exi Min Mat Gar Mat Gar Fac Gar Fac Gar Fac Gar Fac Gar Fac Was Fac Gar Fac Gar Res Res Gar Acc Machines Accessed 105 | . 6 1 15 . 2 . 16 4 4 3 3 4 3 3 7 3 7 3 1 . 1 2 2 3 5 2 1 4 Terminals 72 | . 6 1 12 . . . 9 4 2 3 1 4 . 3 4 3 3 3 . . . 2 1 3 3 1 1 3 Fabricators 3 | . . . . . . . . . . . . . 1 . . . 2 . . . . . . . . . . . Repair Stations 5 | . . . 1 . . . 2 . . . . . 1 . . . . . 1 . . . . . . . . . Recycling Units 5 | . . . . . . . 2 . . . 1 . . . 2 . . . . . . . . . . . . . Scanalyzers 6 | . . . 2 . . . 2 . 1 . . . . . . . . . . . . . . . 1 . . . Garrison Access 12 | . . . . . . . 1 . 1 . 1 . 1 . 1 . 2 . . . 1 . 1 . 1 1 . 1 Total Hacks 290 | . 18 5 59 . 5 . 63 7 11 7 9 11 8 3 15 8 20 4 3 . 2 4 3 8 9 2 1 5 Successful 157 | . 7 3 39 . 5 . 39 3 6 2 6 3 6 2 8 1 9 2 1 . 2 1 1 3 4 1 1 2 Failed 131 | . 10 2 20 . . . 23 4 5 5 3 8 2 1 7 7 11 2 2 . . 3 2 5 5 1 . 3 Catastrophic 19 | . 1 1 1 . . . 2 1 1 1 1 1 . 1 4 1 1 . 1 . . . . . . . . 1 Database Lockouts 2 | . 1 . . . . . 1 . . . . . . . . . . . . . . . . . . . . . Manual 97 | . 14 6 19 . 1 . 29 1 7 . 5 3 1 1 3 1 . . . . . . . 1 2 1 . 2 Terminals 193 | . 18 5 45 . . . 38 7 7 7 2 11 . 3 4 8 9 4 . . . 4 2 8 6 1 1 3 Fabricators 11 | . . . . . . . . . . . . . 3 . . . 8 . . . . . . . . . . . Repair Stations 16 | . . . 3 . . . 7 . . . . . 3 . . . . . 3 . . . . . . . . . Recycling Units 18 | . . . . . . . 6 . . . 3 . . . 9 . . . . . . . . . . . . . Scanalyzers 26 | . . . 11 . . . 11 . 2 . . . . . . . . . . . . . . . 2 . . . Garrison Access 21 | . . . . . . . 1 . 2 . 4 . 2 . 2 . 3 . . . 2 . 1 . 1 1 . 2 Terminal Hacks 69 | . 4 3 19 . 5 . 13 3 1 2 . 3 . 2 . 1 5 2 . . . 1 . 2 2 . 1 . Record 4 | . . . . . 4 . . . . . . . . . . . . . . . . . . . . . . . Part Schematic 1 | . . 1 . . . . . . . . . . . . . . . . . . . . . . . . . . Robot Schematic 1 | . . 1 . . . . . . . . . . . . . . . . . . . . . . . . . . Robot Analysis 7 | . 3 1 1 . . . 2 . . . . . . . . . . . . . . . . . . . . . Prototype ID Bank 6 | . 1 . 4 . . . 1 . . . . . . . . . . . . . . . . . . . . . Open Door 4 | . . . . . . . . 1 . . . . . 1 . . . . . . . 1 . 1 . . . . Level Access Points 1 | . . . 1 . . . . . . . . . . . . . . . . . . . . . . . . . Emergency Access Points 7 | . . . 1 . . . . 1 . 1 . 1 . . . 1 . 1 . . . . . 1 . . . . Machine Index 1 | . . . . . . . 1 . . . . . . . . . . . . . . . . . . . . . Terminal Index 2 | . . . . . . . 1 . . . . . . . . . 1 . . . . . . . . . . . Repair Station Index 1 | . . . . . . . 1 . . . . . . . . . . . . . . . . . . . . . Alert Level 2 | . . . 2 . . . . . . . . . . . . . . . . . . . . . . . . . Unreport Threat 6 | . . . 2 . . . 1 . . . . . . . . . 2 . . . . . . . 1 . . . Locate Traps 7 | . . . 2 . . . 2 . 1 . . . . . . . 1 . . . . . . . 1 . . . Reprogram Traps 1 | . . . . . . . 1 . . . . . . . . . . . . . . . . . . . . . Dispatch Records 1 | . . . 1 . . . . . . . . . . . . . . . . . . . . . . . . . Hauler Manifests 1 | . . . 1 . . . . . . . . . . . . . . . . . . . . . . . . . Registered Components 1 | . . . . . . . 1 . . . . . . . . . . . . . . . . . . . . . Registered Prototypes 1 | . . . 1 . . . . . . . . . . . . . . . . . . . . . . . . . Zone Layout 6 | . . . 3 . . . 2 . . . . . . . . . 1 . . . . . . . . . . . Garrison Registry 3 | . . . . . . . . . . 1 . . . 1 . . . . . . . . . . . . 1 . Patrol Navigation 2 | . . . . . . . . 1 . . . 1 . . . . . . . . . . . . . . . . Security Stations 2 | . . . . . . . . . . . . 1 . . . . . 1 . . . . . . . . . . Proto ID Catalog 1 | . . . . . 1 . . . . . . . . . . . . . . . . . . . . . . . Fabricator Hacks 4 | . . . . . . . . . . . . . 3 . . . 1 . . . . . . . . . . . Load Schematic 2 | . . . . . . . . . . . . . 1 . . . 1 . . . . . . . . . . . Build 2 | . . . . . . . . . . . . . 2 . . . . . . . . . . . . . . . Repair Station Hacks 5 | . . . 1 . . . 2 . . . . . 1 . . . . . 1 . . . . . . . . . Scan Component 5 | . . . 1 . . . 2 . . . . . 1 . . . . . 1 . . . . . . . . . Recycling Unit Hacks 7 | . . . . . . . 2 . . . 2 . . . 3 . . . . . . . . . . . . . Report Inventory 5 | . . . . . . . 2 . . . 1 . . . 2 . . . . . . . . . . . . . Retrieve Components 2 | . . . . . . . . . . . 1 . . . 1 . . . . . . . . . . . . . Scanalyzer 16 | . . . 7 . . . 7 . 1 . . . . . . . . . . . . . . . 1 . . . Insert Component 6 | . . . 2 . . . 3 . 1 . . . . . . . . . . . . . . . . . . . Analyze 8 | . . . 4 . . . 4 . . . . . . . . . . . . . . . . . . . . . Retrieve Study 2 | . . . 1 . . . . . . . . . . . . . . . . . . . . . 1 . . . Garrison Access Hacks 17 | . . . . . . . 1 . 1 . 2 . 1 . 2 . 3 . . . 2 . 1 . 1 1 . 2 Unlock Access 11 | . . . . . . . 1 . 1 . 1 . 1 . 1 . 2 . . . 1 . 1 . 1 1 . . Seal Access 1 | . . . . . . . . . . . . . . . . . . . . . . . . . . . . 1 Coupler Status 5 | . . . . . . . . . . . 1 . . . 1 . 1 . . . 1 . . . . . . 1 Unauthorized Hacks 39 | . 3 . 12 . . . 14 . 3 . 2 . 1 . 3 . . . . . . . . 1 . . . . Terminals 31 | . 3 . 12 . . . 11 . 3 . 1 . . . . . . . . . . . . 1 . . . . Track 2 | . . . 1 . . . . . 1 . . . . . . . . . . . . . . . . . . . Assimilate 3 | . . . 1 . . . 2 . . . . . . . . . . . . . . . . . . . . . Botnet 12 | . 2 . 4 . . . 3 . 1 . 1 . . . . . . . . . . . . 1 . . . . Detonate 1 | . 1 . . . . . . . . . . . . . . . . . . . . . . . . . . . Operators 2 | . . . 1 . . . 1 . . . . . . . . . . . . . . . . . . . . . Skim 11 | . . . 5 . . . 5 . 1 . . . . . . . . . . . . . . . . . . . Fabricators . | . . . . . . . . . . . . . . . . . . . . . . . . . . . . . Repair Stations . | . . . . . . . . . . . . . . . . . . . . . . . . . . . . . Recycling Units 7 | . . . . . . . 3 . . . 1 . . . 3 . . . . . . . . . . . . . Reject 3 | . . . . . . . 2 . . . . . . . 1 . . . . . . . . . . . . . Recyclers 2 | . . . . . . . . . . . 1 . . . 1 . . . . . . . . . . . . . Mask 2 | . . . . . . . 1 . . . . . . . 1 . . . . . . . . . . . . . Scanalyzers . | . . . . . . . . . . . . . . . . . . . . . . . . . . . . . Garrison Access 1 | . . . . . . . . . . . . . 1 . . . . . . . . . . . . . . . Eject 1 | . . . . . . . . . . . . . 1 . . . . . . . . . . . . . . . Data Cores Recovered 1 | . . . . . . . . . . . . . . . . . . . . . . . . . . . . 1 Used . | . . . . . . . . . . . . . . . . . . . . . . . . . . . . . Hacking Detections 90 | . 5 1 14 . . . 15 2 4 2 2 4 3 1 6 3 6 3 1 . 1 1 2 2 5 2 1 4 Full Trace Events 11 | . . . 4 . . . 3 . . 1 . 1 1 . . . 1 . . . . . . . . . . . Feedback Events 1 | . . . . . . . 1 . . . . . . . . . . . . . . . . . . . . . Corruption 1 | . . . . . . . 1 . . . . . . . . . . . . . . . . . . . . . Feedback Blocked . | . . . . . . . . . . . . . . . . . . . . . . . . . . . . . Robot Schematics Acquired 54 | . . 1 . . . . . . . . . . . . . . . . . . . . . . 53 . . . Robots Built . | . . . . . . . . . . . . . . . . . . . . . . . . . . . . . Authchips . | . . . . . . . . . . . . . . . . . . . . . . . . . . . . . Time . | . . . . . . . . . . . . . . . . . . . . . . . . . . . . . Total Robot Build Rating . | . . . . . . . . . . . . . . . . . . . . . . . . . . . . . Part Schematics Acquired 3 | . . 1 . . . . 2 . . . . . . . . . . . . . . . . . . . . . Parts Built 4 | . . . . . . . . . . . . . 4 . . . . . . . . . . . . . . . Authchips . | . . . . . . . . . . . . . . . . . . . . . . . . . . . . . Time 234 | . . . . . . . . . . . . . 234 . . . . . . . . . . . . . . . Total Part Build Rating 28 | . . . . . . . . . . . . . 28 . . . . . . . . . . . . . . . Part Studies Acquired 2 | . . . 1 . . . . . . . . . . . . . . . . . . . . . 1 . . . Parts Repaired . | . . . . . . . . . . . . . . . . . . . . . . . . . . . . . Time . | . . . . . . . . . . . . . . . . . . . . . . . . . . . . . Parts Recycled . | . . . . . . . . . . . . . . . . . . . . . . . . . . . . . Recycled Matter . | . . . . . . . . . . . . . . . . . . . . . . . . . . . . . Retrieved Matter . | . . . . . . . . . . . . . . . . . . . . . . . . . . . . . Retrieved Components 2 | . . . . . . . . . . . 1 . . . 1 . . . . . . . . . . . . . Parts Scanalyzed 3 | . . . 1 . . . 2 . . . . . . . . . . . . . . . . . . . . . Part Schematics Acquired 2 | . . . . . . . 2 . . . . . . . . . . . . . . . . . . . . . Parts Damaged 1 | . . . 1 . . . . . . . . . . . . . . . . . . . . . . . . . Bothacking | -11 -10 -10 -9 -9 -9 -8 -8 -8 -8 -8 -7 -7 -7 -7 -6 -6 -6 -6 -5 -5 -5 -5 -4 -4 -3 -2 -2 -1 ------------ Run | Yrd Mat Min Mat Min Exi Min Mat Gar Mat Gar Fac Gar Fac Gar Fac Gar Fac Gar Fac Was Fac Gar Fac Gar Res Res Gar Acc Used RIF Installer 12 | . . . . . . . . 1 . 2 . 1 . 1 . 1 . 1 . . . 2 . 2 . . 1 . Coupler Efficiency 1 | . . . . . . . . . . . . . . . . . . . . . . . . 1 . . . . Threat Obfuscator 1 | . . . . . . . . . . . . . . . . . . . . . . . . . . . 1 . Signal Jammer 1 | . . . . . . . . . . . . . . . . 1 . . . . . . . . . . . . Zone Cloak 1 | . . . . . . . . . . . . . . 1 . . . . . . . . . . . . . . Robot Detection 1 | . . . . . . . . . . 1 . . . . . . . . . . . . . . . . . . Patrol Navigation 1 | . . . . . . . . . . 1 . . . . . . . . . . . . . . . . . . Alert ID Control 1 | . . . . . . . . . . . . . . . . . . . . . . 1 . . . . . . Structural Interface 1 | . . . . . . . . . . . . 1 . . . . . . . . . . . . . . . . Program Shield 1 | . . . . . . . . . . . . . . . . . . 1 . . . . . . . . . . Autooverride 1 | . . . . . . . . . . . . . . . . . . . . . . 1 . . . . . . Crosswire 1 | . . . . . . . . . . . . . . . . . . . . . . . . 1 . . . . Robots Hacked 112 | . . . 2 . 4 . . 9 4 . . . . . 3 7 3 5 . 4 . 10 4 10 45 . 1 1 Non-combat 20 | . . . 2 . 3 . . . 1 . . . . . . . 1 . . . . 1 3 . 9 . . . Combat 92 | . . . . . 1 . . 9 3 . . . . . 3 7 2 5 . 4 . 9 1 10 36 . 1 1 Autooverrided 6 | . . . . . . . . . . . . . . . . . . . . . . . . 1 4 . 1 . Robot Hacks Applied 115 | . . . 2 . 4 . . 9 6 . . . . . 3 7 4 5 . 4 . 10 5 9 46 . . 1 parse_system 14 | . . . 2 . 4 . . 1 1 . . . . . . . . . . . . 1 . . 4 . . 1 find_fabricator 1 | . . . . . . . . . . . . . . . . . . . . . . . . . 1 . . . drop_inventory 5 | . . . . . . . . . . . . . . . . . . . . . . . 2 . 3 . . . find_station 1 | . . . . . . . . . . . . . . . . . 1 . . . . . . . . . . . map_route 3 | . . . . . . . . . . . . . . . . . . . . . . . 1 . 2 . . . ignore_targets 4 | . . . . . . . . . . . . . . . . . . . . 4 . . . . . . . . find_garrison 4 | . . . . . . . . . 1 . . . . . 1 . 1 . . . . . 1 . . . . . disrupt_area 1 | . . . . . . . . . . . . . . . . . . . . . . 1 . . . . . . overload_power 2 | . . . . . . . . . . . . . . . . . 1 1 . . . . . . . . . . amplify_resonance 9 | . . . . . . . . . 1 . . . . . 1 1 . . . . . 1 1 1 3 . . . disable_weapons 3 | . . . . . . . . . . . . . . . . . . 2 . . . . . . 1 . . . reboot_system 5 | . . . . . . . . . . . . . . . . 3 . . . . . . . . 2 . . . overwrite_iff 25 | . . . . . . . . 1 3 . . . . . . 1 1 1 . . . 2 . 3 13 . . . formatsys_low 1 | . . . . . . . . . . . . . . . . . . . . . . . . . 1 . . . formatsys_high 37 | . . . . . . . . 7 . . . . . . 1 2 . 1 . . . 5 . 5 16 . . . Relay Couplers Released 158 | . . . . . . . . 28 . 19 . 34 4 3 . 13 . 14 . . . 19 . 17 2 . 5 . Ejected 4 | . . . . . . . . . . . . . 4 . . . . . . . . . . . . . . . Machine Destruction 154 | . . . . . . . . 28 . 19 . 34 . 3 . 13 . 14 . . . 19 . 17 2 . 5 . Attached 39 | . . . . . . . . 4 1 . . . . . 1 4 . 2 . 1 . 4 1 11 8 . 2 . Crosswired 17 | . . . . . . . . . . . . . . . . . . . . . . . . 15 1 . 1 . Fabnet Peak Effective % . | . . . . . . . . . . . . . . . . . . . . . . . . . . . . . Robots Rewired 20 | . . . . . . . . 4 . 3 . . . . . 3 . 4 . . . 6 . . . . . . Allies Hacked 5 | . . . . . . . . 1 . . . 1 . . . . . . . . . . . 2 1 . . . Hacks Repelled 1 | . . . . . . . . . . . . . . . . . . . . . . . . 1 . . . . Allies | -11 -10 -10 -9 -9 -9 -8 -8 -8 -8 -8 -7 -7 -7 -7 -6 -6 -6 -6 -5 -5 -5 -5 -4 -4 -3 -2 -2 -1 -------- Run | Yrd Mat Min Mat Min Exi Min Mat Gar Mat Gar Fac Gar Fac Gar Fac Gar Fac Gar Fac Was Fac Gar Fac Gar Res Res Gar Acc Total Allies 117 | . . 3 1 . . . 2 13 3 3 . . . 1 1 6 1 6 . 19 . 13 . 11 33 . 1 . Largest Group 23 | . . 3 3 . . . 2 8 9 3 3 3 . 1 1 5 1 4 . 19 19 23 15 6 6 . 1 . Highest-Rated Group 894 | . . 40 40 . . . 20 150 166 54 51 51 . 31 31 97 32 116 . 684 684 894 543 212 236 . 54 . Highest-Rated Ally 116 | . . 16 16 . . . 10 40 40 18 18 18 . 31 31 32 32 29 . 50 50 51 49 116 64 . 54 . Total Orders 27 | . . . 2 . . . 2 10 . . . . . . . . . 2 . . . . . 2 9 . . . STAY 17 | . . . 1 . . . 1 5 . . . . . . . . . 1 . . . . . 1 8 . . . FOLLOW 9 | . . . 1 . . . 1 5 . . . . . . . . . 1 . . . . . 1 . . . . AID 1 | . . . . . . . . . . . . . . . . . . . . . . . . . 1 . . . Ally Attacks 805 | . . 10 57 . . . . 56 44 10 . 2 . 31 12 38 8 63 . . . 266 17 53 137 . 1 . Total Damage 18945 | . . 104 487 . . . . 1096 847 164 . 61 . 249 187 780 241 1048 . . . 6913 387 1927 4427 . 27 . Kills 137 | . . 3 4 . . . . 13 8 4 . . . 5 1 9 1 9 . . . 45 5 10 20 . . . Allies Corrupted 13 | . . . . . . . . . . . . 1 . . . . . . . . . 1 4 . 7 . . . Allies Melted 1 | . . . . . . . . . . . . . . . . . . . . . . . . . 1 . . . Turrets Deployed 1 | . . . . . . . . . . . . . . . . . . . . . . . . 1 . . . . Intel | -11 -10 -10 -9 -9 -9 -8 -8 -8 -8 -8 -7 -7 -7 -7 -6 -6 -6 -6 -5 -5 -5 -5 -4 -4 -3 -2 -2 -1 ------- Run | Yrd Mat Min Mat Min Exi Min Mat Gar Mat Gar Fac Gar Fac Gar Fac Gar Fac Gar Fac Was Fac Gar Fac Gar Res Res Gar Acc Active Infowar (turns) 8853 | . . 2 . . . . 13 626 52 229 25 141 117 . 34 . 750 1811 197 1142 163 1862 250 627 109 . . 703 Optics 67 | . . . . . . . . . . . . . . . . . . . . . . . . . 67 . . . Sensors 747 | . . 2 . . . . . . . . . . . . . . . . . . . . . . 42 . . 703 Seismic 52 | . . . . . . . . . 52 . . . . . . . . . . . . . . . . . . . T.N.C. 6243 | . . . . . . . . . . . . . . . . . 191 1811 197 1142 163 1862 250 627 . . . . Jamming 2039 | . . . . . . . 13 626 . 229 25 141 117 . 34 . 668 186 . . . . . . . . . . Robot Analysis Total 101 | . 3 1 1 . . . 2 . . . . . . . . . . . . . . . . . 94 . . . Derelict Logs Recovered 4 | . . 3 . 1 . . . . . . . . . . . . . . . . . . . . . . . . Drone Launches . | . . . . . . . . . . . . . . . . . . . . . . . . . . . . . Drone Recoveries . | . . . . . . . . . . . . . . . . . . . . . . . . . . . . . Exploration | -11 -10 -10 -9 -9 -9 -8 -8 -8 -8 -8 -7 -7 -7 -7 -6 -6 -6 -6 -5 -5 -5 -5 -4 -4 -3 -2 -2 -1 ------------- Run | Yrd Mat Min Mat Min Exi Min Mat Gar Mat Gar Fac Gar Fac Gar Fac Gar Fac Gar Fac Was Fac Gar Fac Gar Res Res Gar Acc Turns Passed 34028 | 72 1107 755 3230 1095 2691 1146 1385 1874 635 926 120 1118 340 1266 1288 1300 1302 1811 197 1142 163 1862 250 1797 4011 78 248 819 Spaces Moved 18248 | 56 599 445 1186 449 1324 724 876 1461 322 748 107 867 178 619 662 707 728 994 114 394 64 970 153 927 1495 167 159 753 Core 645 | 7 . . . . . . . . . . . . . . . . . 1 . . . . . . . 7 159 471 Treads 8561 | . 357 445 1186 449 759 . . . . . . . . 384 662 707 264 331 114 390 64 628 . 729 1092 . . . Legs 6962 | . . . . . 565 724 876 1461 322 748 107 867 178 235 . . . . . . . 342 153 198 186 . . . Wheels 557 | 49 242 . . . . . . . . . . . . . . . . 210 . . . . . . . . . 56 Hover 1146 | . . . . . . . . . . . . . . . . . 464 452 . 4 . . . . . . . 226 Flight 377 | . . . . . . . . . . . . . . . . . . . . . . . . . 217 160 . . Fastest Speed 32 | 50 100 160 160 240 90 45 100 100 100 100 100 100 105 105 160 160 65 65 170 170 170 133 133 120 32 32 50 50 Average Speed 143 | 93 139 160 236 240 177 146 108 100 100 100 100 104 105 143 160 160 152 124 170 245 170 166 133 155 136 35 50 58 Slowest Speed 600 | 100 240 160 320 240 240 170 176 100 170 100 100 110 176 240 240 160 240 450 170 600 170 330 200 260 330 50 50 300 Overloaded Moves 74 | . . . . . . 74 . . . . . . . . . . . . . . . . . . . . . . Propulsion Burnouts . | . . . . . . . . . . . . . . . . . . . . . . . . . . . . . Robots Hopped 14 | . . . . . . . . . . . . . . . . . . . . . . . . . 7 7 . . Potential Cave-ins . | . . . . . . . . . . . . . . . . . . . . . . . . . . . . . Cave-ins Triggered . | . . . . . . . . . . . . . . . . . . . . . . . . . . . . . Exploration Rate (%) 57 | 4 96 98 98 96 89 92 89 96 32 88 5 88 4 67 28 93 22 96 4 86 3 97 8 97 32 8 39 14 Regions Visited 28 Branch Regions 4 Pre-discovered Areas 4 | . . . 2 . 1 . 1 . . . . . . . . . . . . . . . . . . . . . Known Exits Taken 10 | . . . . . . 1 1 . 1 . 1 . 1 . 1 . 1 . . . 1 . 1 . . 1 . . Unknown Exits Taken 7 | 1 1 1 1 1 1 . . . . . . . . . . . . . . . . . . . 1 . . . Scrap Searched 4 | . . 1 . 2 . 1 . . . . . . . . . . . . . . . . . . . . . . Spaces Dug 115 | . . . . . . . 1 . 3 1 . 3 1 46 1 22 7 . . . . . . . 27 . . 3 Terrain Destroyed 601 | . 33 . 64 . 14 28 24 1 27 1 . 13 8 67 45 38 20 18 . 2 . 5 1 23 160 . . 9 Melee 2 | . . . . . . . 1 . . 1 . . . . . . . . . . . . . . . . . . Projectile 295 | . . . 8 . 4 28 23 1 26 . . 10 8 23 10 2 13 . . 2 . 5 1 23 99 . . 9 AOE 303 | . 33 . 56 . 10 . . . . . . 3 . 44 35 36 7 18 . . . . . . 61 . . . Terrain Rammed . | . . . . . . . . . . . . . . . . . . . . . . . . . . . . . Walls Destroyed . | . . . . . . . . . . . . . . . . . . . . . . . . . . . . . Machines Disabled . | . . . . . . . . . . . . . . . . . . . . . . . . . . . . . Actions | -11 -10 -10 -9 -9 -9 -8 -8 -8 -8 -8 -7 -7 -7 -7 -6 -6 -6 -6 -5 -5 -5 -5 -4 -4 -3 -2 -2 -1 --------- Run | Yrd Mat Min Mat Min Exi Min Mat Gar Mat Gar Fac Gar Fac Gar Fac Gar Fac Gar Fac Was Fac Gar Fac Gar Res Res Gar Acc Total 24165 | 70 766 464 1480 454 1530 807 1206 1745 541 923 119 1022 316 827 826 830 861 1394 119 501 119 1165 185 1162 3131 178 325 1099 Wait 2943 | . 100 6 100 . 22 40 205 91 108 56 8 48 112 65 88 51 34 34 . 55 54 99 14 35 1070 12 157 279 Move 18202 | 55 598 444 1185 448 1323 723 876 1460 321 747 107 866 178 618 662 706 727 993 114 393 63 969 153 926 1482 155 158 752 Hop 10 | . . . . . . . . . . . . . . . . . . . . . . . . . 5 5 . . Pick Up 218 | 8 7 . 21 . 31 6 4 6 6 9 1 6 3 . 2 . 4 15 . 3 . 8 3 24 45 . 3 3 Fast Attach 236 | 2 3 1 9 . 3 4 5 8 12 . . 7 4 11 17 4 9 19 1 5 . 12 2 28 52 3 1 14 Attach 134 | 3 1 . 4 . 19 6 1 2 2 5 1 4 2 . 1 . 9 6 . 2 . 1 1 8 45 1 2 8 Detach 42 | . . 1 . . 4 5 . . . . . 2 . . . . 5 . . 1 1 . . 3 13 1 1 5 Swap 181 | . 1 . 23 . 5 3 10 10 1 2 1 6 2 6 5 14 5 8 2 2 . 4 . 20 50 . . 1 Drop 312 | . 3 . 32 . 31 8 10 9 15 8 . 12 7 11 17 5 7 17 2 8 1 17 2 32 52 1 . 5 Fire 1621 | 2 52 12 67 6 88 9 94 119 76 56 1 69 8 111 30 25 61 224 . 32 . 50 10 82 308 . 1 28 Melee 17 | . . . 2 . 4 . 1 5 . 3 . 2 . . . . . . . . . . . . . . . . Ram 6 | . . . . . . . . . . . . . . . . . . . . . . . . . . . 2 4 Kick . | . . . . . . . . . . . . . . . . . . . . . . . . . . . . . Crush 12 | . 1 . 1 . . . . . . . . . . . 4 . . . . . . . . 1 5 . . . Escape Stasis 36 | . . . . . . . . . . 10 . . . 5 . 1 . 13 . . . 2 . 2 3 . . . Rewire 156 | . . . . . . . . 35 . 27 . . . . . 24 . 65 . . . 3 . 1 1 . . . Trap 39 | . . . 36 . . 3 . . . . . . . . . . . . . . . . . . . . . . Miscellaneous . | . . . . . . . . . . . . . . . . . . . . . . . . . . . . . Route ------- -11/Scrapyard -10/Materials (discovered 4 exits: *Mat x3 / *Min) -10/Mines (discovered 2 exits: *Mat x2) -9/Materials (discovered 5 exits: *Mat x3 / [*Min] / [*Sto]) -9/Mines (discovered 3 exits: *Mat x2 / *Exi) -9/Exiles (discovered 2 exits: [*Min x2]) -8/Mines (discovered 2 exits: *Mat x2) -8/Materials (discovered 4 exits: *Fac x3 / Gar) -8/Garrison (discovered 4 exits: *Mat x4) -8/Materials (discovered 2 exits: *Fac / Gar) -8/Garrison (discovered 3 exits: *Fac x3) -7/Factory (discovered 2 exits: Low / Gar) -7/Garrison (discovered 3 exits: *Fac x3) -7/Factory -7/Garrison (discovered 3 exits: *Fac x3) -6/Factory -6/Garrison (discovered 4 exits: *Fac x3 / *Fac) -6/Factory (discovered 5 exits: *Fac x2 / [Low] / Gar / Gar) -6/Garrison (discovered 3 exits: *Fac x3) -5/Factory -5/Waste -5/Factory -5/Garrison (discovered 3 exits: *Fac x3) -4/Factory -4/Garrison (discovered 3 exits: *Res x3) -3/Research -2/Research -2/Garrison (discovered 3 exits: *Acc x3) -1/Access To Epsilon Eridani History --------- Turn | Location | Event 28 | -11/Scrapyard | Discovered new exit (range 15) 73 | -11/Scrapyard | Entered Materials 254 | -10/Materials | Discovered new exit (range 7) 321 | -10/Materials | Build established: Mutant 354 | -10/Materials | Discovered new exit (range 8) 457 | -10/Materials | Discovered new exit (range 14) 477 | -10/Materials | Central database locked down 945 | -10/Materials | Discovered new exit (range 16) 1180 | -10/Materials | Entered Mines 1350 | -10/Mines | Learned Materials terminal intel 1353 | -10/Mines | Learned Materials emergency access door positions 1385 | -10/Mines | Found a damaged Exp. Sensor Array with a note attached 1388 | -10/Mines | Found Prototype Device 1388 | -10/Mines | Identified Exp. Sensor Array 1419 | -10/Mines | Assisted by bots powering up and referring to "LRC-V3" 1619 | -10/Mines | Learned Materials interactive machine intel 1779 | -10/Mines | Discovered new exit (range 10) 1835 | -10/Mines | Discovered new exit (range 5) 1935 | -10/Mines | Entered Materials 1935 | -9/Materials | Accompanied by 3 allies 1935 | -9/Materials | Evolved 2 slots: Utility x1, Weapon x1 1937 | -9/Materials | Loaded intel: 18 interactive machine locations 1938 | -9/Materials | Loaded intel: 12 terminal locations 2239 | -9/Materials | Build established: Tank 2547 | -9/Materials | Discovered new exit (range 19) 2771 | -9/Materials | Discovered new exit (range 10) 3347 | -9/Materials | Discovered new exit (range 7) 3659 | -9/Materials | Build established: Trapper-Tank 3739 | -9/Materials | Discovered new exit (range 9) 4008 | -9/Materials | Destroyed 7 combat bots 4215 | -9/Materials | Discovered new exit (range 16) 4519 | -9/Materials | Identified exit to Materials 4609 | -9/Materials | Loaded intel: 2 repair station locations 4856 | -9/Materials | Learned Storage trap positions 4891 | -9/Materials | Learned Materials emergency access door positions 4915 | -9/Materials | Learned location of 1 exit from Recycling 4999 | -9/Materials | Learned location of Mines (-8) 5056 | -9/Materials | Learned location of 3 exits from Materials 5125 | -9/Materials | Learned Storage trap positions 5165 | -9/Materials | Entered Mines 5221 | -9/Mines | Deemed a non-threat by the Exiles lab entrance 5221 | -9/Mines | Discovered new exit (range 5) 5600 | -9/Mines | Discovered exit to Materials (range 6) 5850 | -9/Mines | Found a hidden stash of uninstalled traps 6260 | -9/Mines | Entered Exiles 6310 | -9/Exiles | Met 8R-AWN 6339 | -9/Exiles | Met EX-HEX 6398 | -9/Exiles | Met EX-DEC 6457 | -9/Exiles | Learned location of Zion (-6) 6499 | -9/Exiles | Met EX-BIN 6520 | -9/Exiles | Aligned with FarCom system 6521 | -9/Exiles | Given EX-Vault access code 6563 | -9/Exiles | Opened EX-Vault 6568 | -9/Exiles | Build established: Trapper-Mutant 6571 | -9/Exiles | Found AWS/Gauss 6582 | -9/Exiles | Found Potential Leg 6586 | -9/Exiles | Found Potential Leg 6640 | -9/Exiles | Warned to stay clear of 0b10 Research branches 6884 | -9/Exiles | Build established: Mutant 6997 | -9/Exiles | Discovered new exit (range 15) 7647 | -9/Exiles | Attacked by the Exiles 7775 | -9/Exiles | Core integrity fell below 50% 7786 | -9/Exiles | Destroyed 8R-AWN 7802 | -9/Exiles | Found Exp. Targeting Computer 7809 | -9/Exiles | Lost 5 parts (1n3u1w) 8099 | -9/Exiles | Destroyed EX-HEX 8137 | -9/Exiles | Destroyed EX-BIN 8190 | -9/Exiles | Destroyed EX-DEC 8237 | -9/Exiles | Found AWS/EX-DEC 8249 | -9/Exiles | Found Exp. Core Analyzer 8255 | -9/Exiles | Found Deploy-a-Sentry 8394 | -9/Exiles | Found XL Autogun Array 8938 | -9/Exiles | Discovered new exit (range 10) 8951 | -9/Exiles | Stole four prototypes: Potential Leg, AWS/Gauss, XL Autogun Array, Deploy-a-Sentry 8951 | -9/Exiles | Entered Mines 9061 | -8/Mines | AD-0RF came to Exiles' defense 9089 | -8/Mines | Core integrity fell below 20% 9178 | -8/Mines | Destroyed AD-0RF 9191 | -8/Mines | Found Prototype Device 9191 | -8/Mines | Identified Exp. Thermal Shield 9551 | -8/Mines | Build established: Gunner 9736 | -8/Mines | Discovered exit to Materials (range 7) 9945 | -8/Mines | Discovered exit to Materials (range 4) 10097 | -8/Mines | Entered Materials 10097 | -8/Materials | Evolved 2 slots: Propulsion x1, Weapon x1 10098 | -8/Materials | Identified exit to Factory 10724 | -8/Materials | Destroyed 11 combat bots 10853 | -8/Materials | Learned 4 Recycling zone layouts 10917 | -8/Materials | Learned Factory fabricator intel 10956 | -8/Materials | Learned Storage emergency access door positions 11090 | -8/Materials | Central database locked down 11479 | -8/Materials | Identified exit to Garrison 11482 | -8/Materials | Entered Garrison 11482 | -8/Garrison | Accompanied by 1 ally 11588 | -8/Garrison | Triggered checkpoint 11606 | -8/Garrison | Triggered checkpoint 11681 | -8/Garrison | Garrison Relay disabled 11784 | -8/Garrison | Triggered checkpoint 11796 | -8/Garrison | Triggered checkpoint 11818 | -8/Garrison | Triggered checkpoint 11824 | -8/Garrison | Garrison Relay disabled 11962 | -8/Garrison | Build established: Commander-Gunner 11966 | -8/Garrison | Triggered checkpoint 12033 | -8/Garrison | Installed Relay Interface Framework 12056 | -8/Garrison | AWS/Gauss suddenly broke down 12137 | -8/Garrison | Phase Generator disabled 12248 | -8/Garrison | Garrison Relay disabled 12266 | -8/Garrison | Discovered new exit (range 8) 12336 | -8/Garrison | Triggered checkpoint 12367 | -8/Garrison | Triggered checkpoint 12428 | -8/Garrison | Triggered checkpoint 12446 | -8/Garrison | Discovered new exit (range 5) 12468 | -8/Garrison | Garrison Relay disabled 12513 | -8/Garrison | Discovered new exit (range 7) 12568 | -8/Garrison | System corruption reached 10% 12582 | -8/Garrison | Garrison Relay disabled 12584 | -8/Garrison | Garrison Relay disabled 12680 | -8/Garrison | Rescued a captive Derelict 12704 | -8/Garrison | Triggered checkpoint 12856 | -8/Garrison | Discovered new exit (range 14) 12938 | -8/Garrison | Triggered checkpoint 13014 | -8/Garrison | Garrison Relay disabled 13030 | -8/Garrison | Triggered checkpoint 13356 | -8/Garrison | Entered Materials 13356 | -8/Materials | Accompanied by 8 allies 13556 | -8/Materials | Watched by a mysterious "MATRIX" hacker. 13641 | -8/Materials | Lost 7 allies 13756 | -8/Materials | First assault squad dispatched 13757 | -8/Materials | Core integrity fell below 50% 13767 | -8/Materials | Discovered exit to Factory (range 15) 13897 | -8/Materials | Identified exit to Garrison 13991 | -8/Materials | Entered Garrison 14014 | -8/Garrison | Garrison Relay disabled 14071 | -8/Garrison | Triggered checkpoint 14083 | -8/Garrison | Build established: Scavenger-Gunner 14092 | -8/Garrison | Garrison Relay disabled 14107 | -8/Garrison | Triggered checkpoint 14183 | -8/Garrison | Triggered checkpoint 14205 | -8/Garrison | Triggered checkpoint 14230 | -8/Garrison | Garrison Relay disabled 14271 | -8/Garrison | Expanded RIF knowledge: Patrol Navigation 14343 | -8/Garrison | Discovered exit to Factory (range 10) 14365 | -8/Garrison | Triggered checkpoint 14379 | -8/Garrison | Triggered checkpoint 14442 | -8/Garrison | Garrison Relay disabled 14561 | -8/Garrison | Triggered checkpoint 14590 | -8/Garrison | Garrison Relay disabled 14655 | -8/Garrison | Discovered exit to Factory (range 15) 14721 | -8/Garrison | Triggered checkpoint 14737 | -8/Garrison | Triggered checkpoint 14852 | -8/Garrison | Expanded RIF knowledge: Robot Detection 14878 | -8/Garrison | Discovered exit to Factory (range 15) 14879 | -8/Garrison | Triggered checkpoint 14906 | -8/Garrison | Discovered exit to Factory (range 7) 14906 | -8/Garrison | Discovered exit to Factory (range 31) 14906 | -8/Garrison | Discovered exit to Factory (range 73) 14917 | -8/Garrison | Entered Factory 14917 | -7/Factory | Accompanied by 3 allies 14917 | -7/Factory | Evolved 2 slots: Propulsion x1, Utility x1 14918 | -7/Factory | Identified exit to Lower Caves 14919 | -7/Factory | Loaded intel: 6 fabricator locations 15037 | -7/Factory | Identified exit to Garrison 15037 | -7/Factory | Entered Garrison 15037 | -7/Garrison | Accompanied by 3 allies 15063 | -7/Garrison | Triggered checkpoint 15085 | -7/Garrison | Garrison Relay disabled 15154 | -7/Garrison | Garrison Relay disabled 15154 | -7/Garrison | Garrison Relay disabled 15165 | -7/Garrison | Garrison Relay disabled 15166 | -7/Garrison | Garrison Relay disabled 15271 | -7/Garrison | Triggered checkpoint 15328 | -7/Garrison | Destroyed 8 combat bots 15370 | -7/Garrison | Learned Factory security intel 15394 | -7/Garrison | Discovered new exit (range 15) 15457 | -7/Garrison | Triggered checkpoint 15475 | -7/Garrison | Garrison Relay disabled 15519 | -7/Garrison | Triggered checkpoint 15600 | -7/Garrison | Garrison Relay disabled 15627 | -7/Garrison | Discovered new exit (range 12) 15636 | -7/Garrison | Expanded RIF knowledge: Structural Interface 15745 | -7/Garrison | Triggered checkpoint 15797 | -7/Garrison | Discovered new exit (range 5) 15845 | -7/Garrison | Triggered checkpoint 15855 | -7/Garrison | Garrison Relay disabled 16155 | -7/Garrison | Entered Factory 16287 | -7/Factory | Fabricated Hvy. Phase Cannon? 16437 | -7/Factory | Fabricated Cmb. Antigrav System (x2) 16495 | -7/Factory | Identified exit to Garrison 16495 | -7/Factory | Entered Garrison 16535 | -7/Garrison | Triggered checkpoint 16568 | -7/Garrison | Discovered new exit (range 70) 16568 | -7/Garrison | Discovered new exit (range 80) 16568 | -7/Garrison | Discovered new exit (range 42) 16621 | -7/Garrison | Garrison Relay disabled 16664 | -7/Garrison | Triggered checkpoint 16759 | -7/Garrison | Triggered checkpoint 16785 | -7/Garrison | Destroyed 7 combat bots 17071 | -7/Garrison | Triggered checkpoint 17113 | -7/Garrison | Rescued a captive Derelict 17309 | -7/Garrison | Triggered checkpoint 17325 | -7/Garrison | Expanded RIF knowledge: Zone Cloak 17761 | -7/Garrison | Entered Factory 17761 | -6/Factory | Accompanied by 1 ally 17761 | -6/Factory | Evolved 2 slots: Utility x2 18811 | -6/Factory | First assault squad dispatched 19049 | -6/Factory | Identified exit to Garrison 19049 | -6/Factory | Entered Garrison 19049 | -6/Garrison | Accompanied by 1 ally 19065 | -6/Garrison | Triggered checkpoint 19101 | -6/Garrison | Expanded RIF knowledge: Signal Jamming 19193 | -6/Garrison | Triggered checkpoint 19248 | -6/Garrison | Garrison Relay disabled 19331 | -6/Garrison | Triggered checkpoint 19331 | -6/Garrison | Triggered checkpoint 19469 | -6/Garrison | Triggered checkpoint 19541 | -6/Garrison | Triggered checkpoint 19613 | -6/Garrison | Triggered checkpoint 19650 | -6/Garrison | Discovered new exit (range 3) 19712 | -6/Garrison | Garrison Relay disabled 19758 | -6/Garrison | Discovered new exit (range 14) 19909 | -6/Garrison | Discovered new exit (range 10) 19917 | -6/Garrison | Triggered checkpoint 19978 | -6/Garrison | Lost 3 allies 20021 | -6/Garrison | Garrison Relay disabled 20107 | -6/Garrison | Triggered checkpoint 20169 | -6/Garrison | Discovered new exit (range 10) 20349 | -6/Garrison | Entered Factory 20349 | -6/Factory | Accompanied by 1 ally 20386 | -6/Factory | Discovered new exit (range 15) 20463 | -6/Factory | Discovered new exit (range 15) 20944 | -6/Factory | Discovered new exit (range 16) 20949 | -6/Factory | Lost 3 parts (2n1w) 21135 | -6/Factory | Identified exit to Garrison 21552 | -6/Factory | Garrison activated, responded to threat 21647 | -6/Factory | Identified exit to Garrison 21651 | -6/Factory | Entered Garrison 21681 | -6/Garrison | Triggered checkpoint 21719 | -6/Garrison | Garrison Relay disabled 21803 | -6/Garrison | Learned Factory security intel 21822 | -6/Garrison | Triggered checkpoint 21913 | -6/Garrison | Destroyed 15 combat bots 21966 | -6/Garrison | Triggered checkpoint 22010 | -6/Garrison | Spotted B-75 Beast 22010 | -6/Garrison | Spotted B-90 Cyclops 22017 | -6/Garrison | Garrison Relay disabled 22032 | -6/Garrison | Discovered new exit (range 8) 22039 | -6/Garrison | Expanded RIF knowledge: Program Shield 22073 | -6/Garrison | Triggered checkpoint 22093 | -6/Garrison | Discovered new exit (range 10) 22102 | -6/Garrison | Spotted Executioner 22102 | -6/Garrison | Spotted Executioner 22162 | -6/Garrison | Core integrity fell below 50% 22207 | -6/Garrison | Destroyed 13 combat bots 22211 | -6/Garrison | Lost 8 parts (1p2n2u3w) 22347 | -6/Garrison | Triggered checkpoint 22373 | -6/Garrison | Garrison Relay disabled 22442 | -6/Garrison | Build established: Scavenger-Mutant 22774 | -6/Garrison | Build established: Bothacker-Mutant 22780 | -6/Garrison | Allies destroyed B-90 Cyclops 22796 | -6/Garrison | Allies destroyed B-75 Beast 23114 | -6/Garrison | Discovered new exit (range 15) 23157 | -6/Garrison | Build established: Scavenger-Tank 23169 | -6/Garrison | Triggered checkpoint 23207 | -6/Garrison | Garrison Relay disabled 23319 | -6/Garrison | Triggered checkpoint 23462 | -6/Garrison | Entered Factory 23462 | -5/Factory | Evolved 2 slots: Power x1, Propulsion x1 23659 | -5/Factory | Sucked down chute 23659 | -5/Factory | Entered Waste 23693 | -5/Waste | Spotted C-40 Crusher 23704 | -5/Waste | Spotted C-40 Crusher 23733 | -5/Waste | Destroyed C-40 Crusher 23743 | -5/Waste | Spotted C-40 Crusher 23745 | -5/Waste | Spotted C-40 Crusher 23754 | -5/Waste | Destroyed C-40 Crusher 23769 | -5/Waste | Destroyed C-40 Crusher 23784 | -5/Waste | Spotted C-40 Crusher 23846 | -5/Waste | Spotted C-40 Crusher 23857 | -5/Waste | Destroyed C-40 Crusher 23861 | -5/Waste | Destroyed C-40 Crusher 23915 | -5/Waste | Destroyed C-40 Crusher 23981 | -5/Waste | Build established: Scavenger-Gunner 24048 | -5/Waste | Warlord forces began an assault 24189 | -5/Waste | Discovered new exit (range 12) 24801 | -5/Waste | Entered Factory 24801 | -5/Factory | Accompanied by 19 allies 24880 | -5/Factory | Build established: Scavenger-Tank 24899 | -5/Factory | Identified exit to Garrison 24964 | -5/Factory | Entered Garrison 24964 | -5/Garrison | Accompanied by 19 allies 25146 | -5/Garrison | Triggered checkpoint 25163 | -5/Garrison | Garrison Relay disabled 25446 | -5/Garrison | Triggered checkpoint 25496 | -5/Garrison | Discovered new exit (range 10) 25540 | -5/Garrison | Triggered checkpoint 25570 | -5/Garrison | Garrison Relay disabled 25660 | -5/Garrison | Triggered checkpoint 25704 | -5/Garrison | Triggered checkpoint 25706 | -5/Garrison | Garrison Relay disabled 25741 | -5/Garrison | Discovered new exit (range 10) 25793 | -5/Garrison | Expanded RIF knowledge: Autooverride 25804 | -5/Garrison | Triggered checkpoint 25848 | -5/Garrison | Triggered checkpoint 25854 | -5/Garrison | Garrison Relay disabled 25983 | -5/Garrison | Expanded RIF knowledge: Alert ID Control 26042 | -5/Garrison | Triggered checkpoint 26138 | -5/Garrison | Triggered checkpoint 26196 | -5/Garrison | Lost 4 allies 26437 | -5/Garrison | Lost 5 allies 26460 | -5/Garrison | Garrison Relay disabled 26481 | -5/Garrison | Discovered new exit (range 10) 26542 | -5/Garrison | Build established: Commander-Gunner 26826 | -5/Garrison | Entered Factory 26826 | -4/Factory | Accompanied by 15 allies 26826 | -4/Factory | Evolved 2 slots: Propulsion x1, Utility x1 27068 | -4/Factory | Identified exit to Garrison 27076 | -4/Factory | First assault squad dispatched 27076 | -4/Factory | P-70 Sage assimilated allied Soldier 6c 27076 | -4/Factory | Entered Garrison 27076 | -4/Garrison | Accompanied by 4 allies 27082 | -4/Garrison | P-80 Master assimilated allied OS-HZU(g) 27088 | -4/Garrison | Lost 5 allies 27096 | -4/Garrison | P-80 Master assimilated allied Warrior 6d 27134 | -4/Garrison | Expanded RIF knowledge: Crosswire 27202 | -4/Garrison | Triggered checkpoint 27271 | -4/Garrison | System corruption reached 10% 27339 | -4/Garrison | Garrison Relay disabled 27394 | -4/Garrison | Spotted B-86 Titan 27395 | -4/Garrison | Triggered checkpoint 27449 | -4/Garrison | Destroyed 7 combat bots 27469 | -4/Garrison | DAS Turret deployed 27522 | -4/Garrison | Lost 15 parts (3p3n3u6w) 27530 | -4/Garrison | Triggered checkpoint 27698 | -4/Garrison | Garrison Relay disabled 27716 | -4/Garrison | Triggered checkpoint 27789 | -4/Garrison | Discovered new exit (range 2) 27829 | -4/Garrison | Build established: Scavenger-Tank 27950 | -4/Garrison | Triggered checkpoint 27970 | -4/Garrison | Garrison Relay disabled 28012 | -4/Garrison | Discovered new exit (range 14) 28036 | -4/Garrison | Garrison Relay disabled 28134 | -4/Garrison | Build established: Botlord-Tank 28207 | -4/Garrison | Found Unknown Device 28207 | -4/Garrison | Identified Adv. Force Booster 28238 | -4/Garrison | Expanded RIF knowledge: Coupler Efficiency 28258 | -4/Garrison | Spotted B-86 Titan 28265 | -4/Garrison | Destroyed B-86 Titan 28299 | -4/Garrison | Rescued a captive Derelict 28302 | -4/Garrison | Rescued a captive Derelict 28349 | -4/Garrison | Discovered new exit (range 3) 28374 | -4/Garrison | Triggered checkpoint 28418 | -4/Garrison | Garrison Relay disabled 28468 | -4/Garrison | P-70 Sage assimilated allied 5Z-7CI(g) 28873 | -4/Garrison | Entered Research 28873 | -3/Research | Accompanied by 2 allies 28873 | -3/Research | Evolved 2 slots: Utility x2 29043 | -3/Research | Found Imp. Powered Armor 29075 | -3/Research | Unchained authorized (CL-0N3) 29257 | -3/Research | Spotted B-86 Titan 29262 | -3/Research | Destroyed B-86 Titan 29364 | -3/Research | Lost 3 parts (1p1n1u) 29373 | -3/Research | First assault squad dispatched 29647 | -3/Research | Spotted Quarantine Guard 29676 | -3/Research | Lost 6 allies 29740 | -3/Research | Destroyed Quarantine Guard 29740 | -3/Research | Quarantine Guard reconstituted as CL-0N3 30747 | -3/Research | A-15 Conveyor reconstituted as Cetus Guard 30747 | -3/Research | Spotted Cetus Guard 30762 | -3/Research | Cetus Guard reconstituted as CL-0N3 30821 | -3/Research | Found Unknown Launcher 30821 | -3/Research | Identified Gamma Bomb Array 30926 | -3/Research | Found Gamma Bomb Array 30927 | -3/Research | Lost 4 allies 31108 | -3/Research | K-01 Serf reconstituted as Armor Guard 31112 | -3/Research | Spotted Armor Guard 31118 | -3/Research | Destroyed Armor Guard 31118 | -3/Research | Armor Guard reconstituted as CL-0N3 31167 | -3/Research | Destroyed CL-0N3 31168 | -3/Research | Extracted schematics, analyses from CL-0N3's data core 31547 | -3/Research | Identified exit to Garrison 31743 | -3/Research | Build established: Trapper-Tank 32059 | -3/Research | Found Prototype Device 32059 | -3/Research | Identified Adv. Kinecellerator 32073 | -3/Research | Found Adv. Kinecellerator 32100 | -3/Research | System corruption reached 10% 32116 | -3/Research | Spotted Executioner 32116 | -3/Research | Spotted Striker 32117 | -3/Research | Cargo convoy interrupted 32127 | -3/Research | Destroyed Striker 32137 | -3/Research | Destroyed Executioner 32165 | -3/Research | Lost 3 allies 32185 | -3/Research | Found Corrupted Prototype Device 32189 | -3/Research | Destroyed 13 combat bots 32189 | -3/Research | Found Prototype Launcher 32194 | -3/Research | Lost 5 parts (2p2u1w) 32197 | -3/Research | Found Prototype Processor 32213 | -3/Research | Found Prototype Device 32216 | -3/Research | Found Corrupted Prototype Launcher 32219 | -3/Research | Found Prototype Launcher 32222 | -3/Research | Found Prototype Processor 32222 | -3/Research | Identified Exp. Armor Integrity Analyzer 32231 | -3/Research | Identified Hellfire Missile Launcher (x2) 32233 | -3/Research | Identified Exp. Phase Shifter 32303 | -3/Research | Lost 3 allies 32345 | -3/Research | Lost 6 parts (3n2u1w) 32349 | -3/Research | Destroyed 9 combat bots 32438 | -3/Research | Lost 3 parts (1u2w) 32478 | -3/Research | High security lockdown imminent 32478 | -3/Research | System corruption reached 30% 32500 | -3/Research | Destroyed 9 combat bots 32518 | -3/Research | Core integrity fell below 50% 32558 | -3/Research | High security lockdown engaged 32572 | -3/Research | Lost 11 parts (1p5n1u4w) 32747 | -3/Research | Released all parts (20) 32748 | -3/Research | Identified Exp. Melee Analysis Suite 32875 | -3/Research | Discovered new exit (range 16) 32884 | -3/Research | Entered another Research area 32884 | -2/Research | Evolved 2 slots: Propulsion x2 32912 | -2/Research | Lost 3 parts (2n1u) 32948 | -2/Research | Spotted B-90 Cyclops 32962 | -2/Research | Identified exit to Garrison 32962 | -2/Research | Entered Garrison 32975 | -2/Garrison | Discovered new exit (range 49) 32975 | -2/Garrison | Discovered new exit (range 95) 32975 | -2/Garrison | Discovered new exit (range 54) 32989 | -2/Garrison | Lost 5 parts (2p3n) 32993 | -2/Garrison | Garrison Relay disabled 33063 | -2/Garrison | Build established: Mutant 33174 | -2/Garrison | Spotted B-90 Cyclops 33175 | -2/Garrison | Triggered checkpoint 33203 | -2/Garrison | Expanded RIF knowledge: Threat Obfuscation 33209 | -2/Garrison | Core integrity fell below 50% 33210 | -2/Garrison | Entered Access 33210 | -1/Access | Evolved 2 slots: Utility x2 33833 | -1/Access | Build established: Hacker-Mutant 33896 | -1/Access | Found Quantum Capacitor 34005 | -1/Access | Spotted B-99 Colossus 34005 | -1/Access | Spotted B-99 Colossus 34015 | -1/Access | Core integrity fell below 50% 34024 | -1/Access | Core integrity fell below 20% 34025 | -1/Access | Discovered new exit (range 5) 34029 | *** | Escaped! Last Messages --------------- Reading system data... New IDs: Rnf. Quantum Reactor Hvy. Reflective Plating Hvy. Insulated Plating Imp. Utility Shielding Multirail 34020_ Knocked back. 34020_ Penetrated by Slug. 34020_ Slug penetrates Sealed Heavy Doors. 34020_ Penetrated by Slug. 34020_ Adv. Remote Datajack destroyed. 34020_ Slug penetrates Sealed Heavy Doors. 34022_ K-01 Serf collects debris. 34023_ System corrupted: Heat flow error (+204). 34023_ Knocked back. 34023_ Penetrated by Slug. 34023_ Slug penetrates Sealed Heavy Doors. 34025_ Main Access Shell breached. 34025_ EXIT=FOUND Map ----- +----------------------------------------------------+ | ?????????????????????????????????????????????????? | | ?????????????????????????????????????????????????? | | ?????????????????????????????????????????????????? | | ?????????????????????????????????????????????????? | | ?????????????????????????????????????????????????? | | ?????????????????????????????????????????????????? | | ?????????????????????????????????????????????????? | | ?????????????????????????????????????????????????? | | ?????????????????????????????????????????????????? | | ?????????????????????????????????????????????????? | | ?????????????????????????????????????????????????? | | ?????????????????????????????????????????????????? | | ?????????????????????????????????????????????????? | | ##########???????????????????????????????????????? | | " #???????????????????????????????????????? | | # !!#???????????????????????????????????????? | | # " #???????????????????????????????????????? | | # """ #???????????????????????????????????????? | | # """#???????????????????????????????????????? | | "% " #???????????????????????????????????????? | | / #########??##########"??????????????????? | | # # %"""" "??????????????????? | | # # % % "??????????????????? | | #"######## """" """""" "??????????????????? | | "??" "?????????????????????? | | "??" " "@ "?????????????????????? | | % % "??" " "" "?????????????????????? | | %"??" " "?????????????????????? | | ######"%#" "??" """"""?????????????????????? | | ?????## ## "??" ??????????????????????????? | | ??????# ## "??" ??????????????????????????? | | ??????# ##########??###??????????????????????????? | | ??????# #????????????????????????????????????????? | | ??????# #????????????????????????????????????????? | | ??????# #????????????????????????????????????????? | | ??????# #????????????????????????????????????????? | | ??????# #????????????????????????????????????????? | | ??????? ?????????????????????????????????????????? | | ??????? ?????????????????????????????????????????? | | ??????? ?????????????????????????????????????????? | | ???????#?????????????????????????????????????????? | | ?????????????????????????????????????????????????? | | ?????????????????????????????????????????????????? | | ?????????????????????????????????????????????????? | | ?????????????????????????????????????????????????? | | ?????????????????????????????????????????????????? | | ?????????????????????????????????????????????????? | | ?????????????????????????????????????????????????? | | ?????????????????????????????????????????????????? | | ?????????????????????????????????????????????????? | +----------------------------------------------------+ Best States ------------- Heat Dissipation 174 Coolant Potential 120 Energy Generation 43 Energy Capacity 1420 Matter Stores 300 Matter Capacity 300 Sight Range 22 Robot Scan Range 20 Terrain Scan Density 10 Jamming Range 16 Corruption Containment 12 Armor Coverage 2000 Resistance: TH 15 Core Shielding 30 Propulsion Shielding 66 Weapon Cycling 25 Phase Shifting 20 Evasion (%) 73 Targeting Accuracy 12 Melee Accuracy 12 Core Analysis 8 Armor Integrity Analysis 50 Recoil Reduction 6 Offensive Hacking 12 Defensive Hacking 12 Relay Coupler Types 7 Relay Coupler Value 225 Trap Extractor Capacity 8 Item Schematics ----------------- Huge Storage Unit | -10/Mines | Hacked Cmb. Antigrav System | -8/Materials | Scanalyzed Exp. Energy Well | -8/Materials | Scanalyzed Robot Schematics ------------------ M-13 Machinist | -10/Mines | Hacked K-01 Serf | -3/Research | Archive T-07 Excavator | -3/Research | Archive A-02 Transporter | -3/Research | Archive A-15 Conveyor | -3/Research | Archive R-06 Scavenger | -3/Research | Archive R-10 Processor | -3/Research | Archive M-14 Sweeper | -3/Research | Archive M-22 Extractor | -3/Research | Archive M-30 Cleanser | -3/Research | Archive M-28 Smith | -3/Research | Archive M-36 Artificer | -3/Research | Archive O-16 Technician | -3/Research | Archive O-24 Administrator | -3/Research | Archive O-32 Director | -3/Research | Archive W-16 Scout | -3/Research | Archive W-25 Informer | -3/Research | Archive W-44 Eye | -3/Research | Archive S-10 Pest | -3/Research | Archive S-27 Virus | -3/Research | Archive S-43 Plague | -3/Research | Archive G-34 Mercenary | -3/Research | Archive G-47 Trooper | -3/Research | Archive G-50 Soldier | -3/Research | Archive G-67 Veteran | -3/Research | Archive G-73 Enforcer | -3/Research | Archive B-36 Bruiser | -3/Research | Archive B-48 Gladiator | -3/Research | Archive B-60 Warrior | -3/Research | Archive B-74 Champion | -3/Research | Archive L-31 Rogue | -3/Research | Archive L-41 Fighter | -3/Research | Archive L-61 Swordsman | -3/Research | Archive Y-45 Defender | -3/Research | Archive Y-54 Guardian | -3/Research | Archive Y-64 Sentinel | -3/Research | Archive Y-72 Warden | -3/Research | Archive D-53 Grenadier | -3/Research | Archive D-63 Destroyer | -3/Research | Archive D-83 Annihilator | -3/Research | Archive X-57 Shotgunner | -3/Research | Archive X-62 Marksman | -3/Research | Archive X-67 Chaingunner | -3/Research | Archive X-72 Disruptor | -3/Research | Archive X-77 Beamer | -3/Research | Archive X-82 Rainmaker | -3/Research | Archive X-87 Electro | -3/Research | Archive H-55 Commando | -3/Research | Archive H-66 Slayer | -3/Research | Archive H-77 Assassin | -3/Research | Archive H-88 Terminator | -3/Research | Archive P-60 Hacker | -3/Research | Archive P-70 Sage | -3/Research | Archive P-80 Master | -3/Research | Archive Fabricated ------------ Hvy. Phase Cannon | x2 | -7/Factory | Preloaded Cmb. Antigrav System | x2 | -7/Factory Repaired ---------- Nothing Studied --------- Hvy. Assault Rifle | -9/Materials | Hacked Hyp. Railgun | -3/Research | Hacked Alien Tech Used ----------------- None Achievements -------------- None Challenges ------------ None Game ------ Seed BraceGravjetPlating Manual? 0 Play Time 05:10:07 Cumulative 1367.3 hours Start 2026.02.11 @ 23:06:13 End 2026.02.12 @ 04:40:22 Sessions 1 Manual Loads 0 Difficulty Rogue Special Mode None Game No. 455 Rogue 450 Adventurer 4 Explorer 1 Win Type 0 Total 36 Types 17/5/2/2/1/2/2/1/2/2 Lore% 97 Gallery% 93 Achievement% 86 Wizard Run 0 Options --------- Layout 0 ASCII 0 Keyboard 0 Movement Numpad Keybinds 0 Fullscreen 2 Font 18/SmallcapsGlow Map View 76x50 Zoom Use 0% Tactical HUD 1 Map Filters NONE Filters NONE Steam 1 RUN: 76120529-c5d8-478c-b34f-262145ab5409